Workbook

Sheet Cover Page
D1: Add company logo
N2: Version 24.2a (for incinerators) - 27/11/24
N4: Note that there is another version of this template available for co-incinerators
B8: Add photo
N13: Notes:
N14: This template may require adjustments by individual operators to meet specific reporting requirements as defined in the site Permit(s)
B29: Annual Performance Report 2024
B31: Permit EPR/NP3739PD/v009
B33: The Coventry and Solihull Waste Disposal Company Limited
B35: CSWDC
B37: CSWDC
B39: Year: | C39: 2024
B41: Address: | C41: Bar Road, Coventry CV3 4AN
B43: Tel: | C43: 02476507400
B45: Email: | C45: info@cswdc.co.uk
B47: Prepared by: | C47: M Schilling | F47: Position: | G47: EHS Advisor
B49: Approved by: | C49: E Price | F49: Position: | G49: CP Manager
B51: Version:
B53: Issue Date: | C53: 2025-02-21

Sheet Facility Info
A1: =+'Cover Page'!$B$29 -> Annual Performance Report 2024 | E1: =+'Cover Page'!$B$33 -> The Coventry and Solihull Waste Disposal Company Limited
A3: Plant Description and Design | K3: Notes:
A5: The Waste to Energy plant, which is located at Bar Road in Coventry, processes Municipal Household waste arising in the City of Coventry and the neighbouring borough of Solihull. Municipal household waste from other nearby local authorities is also processed at the plant. The plant is operated by The Coventry and Solihull Waste Disposal Company Ltd. The main activity at the installation is thermal treatment of municipal waste and recovery of energy, in the form of heat which is converted to electricity for export to the grid. The installation also has the capability to export heat in the form of either High or Low Pressure steam to a district heating scheme operated by Engie UK. A limited amount of hazardous waste, containing less than 1% halogenated organic substances (as chlorine), is also burned with the municipal waste. The installation includes waste receipt and storage, steam generation boilers, abatement of the exhaust gas, on-site storage of residues and all systems for controlling and monitoring combustion operation. The steam produced is used to drive 2 steam turbine driven generators. The plant design is capable of processing approximately 315,000 tonnes of waste per annum/36 tonnes per hour in three combustion units (12 tonne per unit). The heat produced is used to generate 17.7MW of electricity and up to 16MW heat energy. Refuse collection vehicles enter the reception hall and deposit their waste into a storage bunker. The material is then loaded by crane into each of the combustion units via feed hoppers from the storage bunker. After entering the combustion chamber via the refuse feed ram the material is allowed to fall onto the grate in a controlled manner. The moving grate mechanisms are used to agitate the waste as it progresses down to the ash discharge. As the waste moves along, pre-heated primary air is introduced from beneath the grate enabling the waste to go through a series of drying and burning areas. Secondary air is introduced from above the grate for combustion control. Auxiliary gas fired burners are located in the combustion chamber both to heat it up on start-up and to maintain the final gas temperature if necessary. The hot gases are maintained at a minimum temperature of 850C for 2 seconds in the combustion chamber before passing to the boiler, economiser and abatement plant. Each combustion unit is equipped with a 3-bank water tube boiler, raising steam at 17 bar and 208C. Economisers are fitted downstream of each combustion unit to pre-heat the incoming feed water. Combustion is controlled with the use of an infrared imaging computer system, which uses fuzzy logic systems to control various parameters of the plant, ensuring improved efficiency and emission performance when compared to fully manual control. Each combustion unit is provided with its own gas cleaning and monitoring equipment. Gas cleaning comprises activated carbon injection, then dry scrubbing with hydrated lime. The gases pass through bag filters to remove particulates prior to discharge to atmosphere via a single 92m stack. NOx control is achieved by Selective Non Catalytic Reduction (SNCR) using ammonium hydroxide injection. Emissions from the stack are continuously monitored for particulates, carbon monoxide (CO), sulphur dioxide (SO2), hydrogen chloride (HCl), oxygen (O2), nitrogen oxides (NOx) and volatile organic compounds (VOC). There is no discharge of process liquids to controlled waters. Uncontaminated surface and roof waters are discharged to the surface water drainage system, via penstock equipped interceptors. All process waste waters are discharged to foul sewer and these are treated at Finham Sewage Treatment Works, which is operated by Severn Trent Water. Bottom ash and metal content from the combustion unit grate is quenched with water. Both fractions are then conveyed to individual concrete storage bunkers prior to removal for reprocessing into aggregates or for recycling back into the steel industry. Air Pollution Control Residues (APCR) from the bag filters are collected continuously and stored in an enclosed silo prior to removal from site for disposal. | K5: Include summary of plant design, design capacity, no. of combustion lines, electrical and heat capacity and any other general information that describes the facility, its location and purpose
A20: Summary of Operational Processes and Procedures
A22: The plant consists of three separate combustion units that process up to a maximum of 12 tonnes of waste per hour. There are two steam turbine driven electrical generating sets on the plant which convert the heat energy recovered from the combustion process into electricity. The generating sets are designated as G1 and G2. G1 has a capacity of 12.9MW and G2 a capacity of 4.8 MW. The process energy requirements are taken from the electricity generated and the surplus is exported to the grid. The plant also has the capacity to export heat, in the form of high pressure and low pressure steam. The following table categorises the types of wastes processed. EWC Code and Description 02 03 04 materials unsuitable for consumption or processing 03 01 04* sawdust, shavings, cuttings, wood, particle board and veneer containing hazardous substances (Oily and wood/veneer hazardous waste) 13 07 01* fuel oil and diesel (Oily and wood/veneer hazardous waste) 13 08 99* wastes not otherwise specified (Oily and wood/veneer hazardous waste) 15 02 02* absorbents, filter materials (including oil filters not otherwise specified), wiping cloths, protective clothing contaminated by hazardous substances (Oily and wood/veneer hazardous waste) 15 02 03 absorbents, filter materials, wiping cloths and protective clothing other than those mentioned in 15 02 02 (Oily and wood/veneer hazardous waste) 16 07 08* wastes containing oil (Oily and wood/veneer hazardous waste) 18 01 04 wastes whose collection and disposal is not subject to special requirements in order to prevent infection (for example dressings, plaster casts, linen, disposable clothing, diapers) 18 01 06* chemicals consisting of or containing hazardous substances 18 01 07 chemicals other than those mentioned in 18 01 06 18 01 09 medicines other than those mentioned in 18 01 08 19 01 99 wastes not otherwise specified 19 12 01 paper and cardboard 19 12 08 textiles 19 12 10 combustible waste (refuse derived fuel) 19 12 12 other wastes (including mixtures of materials) from mechanical treatment of wastes other than those mentioned in 19 12 11 20 01 01 paper and cardboard 20 01 08 biodegradable kitchen and canteen waste 20 01 11 textiles 20 02 01 biodegradable waste 20 03 01 mixed municipal waste 20 03 02 waste from markets 20 03 07 bulky waste 20 03 99 municipal wastes not otherwise specified | K22: Include summary of key processes and procedures such as (but not limited to); waste reception, control rooms, grate, bed and boiler, energy & heat generation, cooling systems, residue management, emission controls, health and safety systems, maintenance

Sheet Contents
A1: =+'Cover Page'!$B$29 -> Annual Performance Report 2024 | E1: =+'Cover Page'!$B$33 -> The Coventry and Solihull Waste Disposal Company Limited
A3: Contents | K3: Notes:
A4: Section | B4: Subject | H4: Page | K4: Section references and Page nos. to be inserted
B5: Facility Information | K5: Sections and Subjects may require adjustment by individual operators to meet specific reporting requirements as defined in the sites Permit(s)
B6: Operational Data
B7: Operational Summary
B8: Performance Form 1
B9: Energy Form 1
B10: Permit Compliance
B11: Improvements
B12: Public Liaison
B13: Carbon dioxide and nitrous oxide emissions
B14: Residue Quality
B15: Emissions to Water
B16: Emissions to Air (periodically monitored)
B17: Emissions to Air (continuously monitored)
B18: Hydrogen Chloride emissions
B19: Sulphur Dioxide emissions
B20: Oxides of Nitrogen emissions
B21: Total Organic Carbon emissions
B22: Particulate Matter emissions
B23: Carbon Monoxide emissions
B24: Ammonia emissions
A27: Version Control
A28: Section | B28: Information | H28: Date
A35: Distribution
A36: Copy | B36: Name, Role | H36: No.
A45: This report is required under the Industrial Emissions Directive’s Article 55(2) requirements on reporting and public information on waste incineration plants and co-incineration plants, which require the operator to produce an annual report on the functioning and monitoring of the plant and make it available to the public.

Sheet Operational Data
A1: =+'Cover Page'!$B$29 -> Annual Performance Report 2024 | E1: =+'Cover Page'!$B$33 -> The Coventry and Solihull Waste Disposal Company Limited
A3: Operational Data
A4: Plant Size | B4: 315000 | D4: tonnes pa | E4: 77 | F4: MWth | G4: 18 | H4: MWe | J4: Notes:
A5: No. of combustion lines | B5: 3 | D5: No. of Turbines: | F5: 2 | J5: * - RDF to include SRF
J6: ** - Combusted tonnage = tonnes delivered in period + (tonnes in bunker at start of period – tonnes in bunker at end of period), or equivalent calculation depending on plant type
A7: Waste types received | B7: Unit | C7: Q1 | D7: Q2 | E7: Q3 | F7: Q4 | G7: Year Total | H7: %
A8: Household / Local Authority | B8: tonnes | C8: 73427.35 | D8: 74726.89 | E8: 66635.85 | F8: 76373.67 | G8: =SUM(C8:F8) -> 291163.76 | H8: =IF(G8>0,G8/$G$18,"-") -> 0.9989695129
A9: Commercial & Industrial | E9: 0.1 | F9: 1.52 | G9: =SUM(C9:F9) -> 1.62 | H9: 5.558145735e-06 | J9: *** - CHP plants only
A10: Hazardous | C10: 198.46 | D10: 58.44 | E10: 26.36 | F10: 15.47 | G10: 298.73 | H10: 0.001024928936 | J10: **** Availability Definition: 'the availability of a line is to be calculated by the number of hours the line reported Continuously Monitored emission levels to the Regulator through the calendar year divided by the total number of hours in that year. The overall plant availability is calculated as the Mean of all lines in the plant. For clarity this includes periods of abnormal operation.' Rationale: The primary function of an Energy from Waste facility is the disposal of waste. It follows therefore that the availability of a plant is determined by the period of time a facility spends undertaking this activity.
A11: Clinical | G11: 0 | H11: -
A12: Waste wood (biomass) | G12: 0 | H12: -
A13: Refuse Derived Fuel * - H'hold/LA | G13: =SUM(C13:F13) -> 0 | H13: -
A14: Refuse Derived Fuel * - C&I | G14: 0 | H14: -
A15: Other [Please specify] | G15: 0 | H15: -
A16: Other [Please specify] | G16: 0 | H16: -
A17: Other [Please specify] | G17: 0 | H17: -
A18: Total waste received | C18: =SUM(C8:C17) -> 73625.81 | D18: =SUM(D8:D17) -> 74785.33 | E18: =SUM(E8:E17) -> 66662.31 | F18: =SUM(F8:F17) -> 76390.66 | G18: 291464.11
A19: Rejected Waste | G19: =SUM(C19:F19) -> 0 | H19: =IF(G19>0,G19/$G$18,"-") -> -
A20: Unprocessed waste transferred out | G20: =SUM(C20:F20) -> 0 | H20: =IF(G20>0,G20/$G$18,"-") -> -
A21: Total waste combusted ** | C21: 73626 | D21: 74785 | E21: 66662 | F21: 76391 | G21: =SUM(C21:F21) -> 291464
J22: Password for protected cells A password has been set to prevent accidental editing of cells with formulae. If you still need to make an edit for some reason then the password = 1234
A23: Energy Usage / Export | B23: Unit | C23: Q1 | D23: Q2 | E23: Q3 | F23: Q4 | G23: Year Total | H23: KWh/te
A24: Power Generated | B24: MWh | C24: 9409.8 | D24: 9340.05 | E24: 10113.72 | F24: 9191.89 | G24: =SUM(C24:F24) -> 38055.46 | H24: =IF(G24>0,G24*1000/$G$21,"-") -> 130.566588
A25: Power Exported | C25: 4540 | D25: 4483 | E25: 4845 | F25: 4309 | G25: =SUM(C25:F25) -> 18177 | H25: =IF(G25>0,G25*1000/$G$21,"-") -> 62.36447726
A26: Power Used on site | C26: 4919 | D26: 4900 | E26: 5317 | F26: 4930 | G26: =SUM(C26:F26) -> 20066 | H26: =IF(G26>0,G26*1000/$G$21,"-") -> 68.84555211
A27: Power Imported | C27: 7 | D27: 84 | E27: 3 | F27: 6 | G27: 100 | H27: =IF(G27>0,G27*1000/$G$21,"-") -> 0.3430955452
A28: Parasitic Load | B28: % | C28: =IF(C24>0,1-C25/(C24+C27),"-") -> 0.5178829326 | D28: =IF(D24>0,1-D25/(D24+D27),"-") -> 0.5243021843 | E28: =IF(E24>0,1-E25/(E24+E27),"-") -> 0.5210898394 | F28: =IF(F24>0,1-F25/(F24+F27),"-") -> 0.5315229906 | G28: =IF(G24>0,1-G25/(G24+G27),"-") -> 0.5236068442
A29: Thermal Energy Produced *** | B29: MWh | C29: 5700 | D29: 3417 | E29: 3148 | F29: 5199 | G29: =SUM(C29:F29) -> 17464 | H29: =IF(G29>0,G29*1000/$G$21,"-") -> 59.91820602
A30: Thermal Energy Exported *** | C30: 5090 | D30: 3051 | E30: 2811 | F30: 4642 | G30: 15594 | H30: =IF(G30>0,G30*1000/$G$21,"-") -> 53.50231933
A31: R1 value (if applicable) | B31: R1
A33: Waste Disposal & Recovery | B33: Unit | C33: Q1 | D33: Q2 | E33: Q3 | F33: Q4 | G33: Year Total | H33: % inputs
A34: APC Residues - produced | B34: tonnes | C34: 3263.4 | D34: 3330.6 | E34: 2592.7 | F34: 3081.96 | G34: =SUM(C34:F34) -> 12268.66 | H34: =IF(G34>0,G34/$G$21,"-") -> 0.04209322592
A35: IBA - produced | C35: 11041.3 | D35: 11685.25 | E35: 10324.63 | F35: 11160.8 | G35: 44211.98 | H35: =IF(G35>0,G35/$G$21,"-") -> 0.1516893338
A36: Metals recycling | C36: 1281.38 | D36: 1259.97 | E36: 1142.75 | F36: 1303.33 | G36: =SUM(C36:F36) -> 4987.43 | H36: 0.01711165015
A37: Other | C37: 0 | D37: 0 | E37: 0 | F37: 0 | G37: =SUM(C37:F37) -> 0 | H37: -
A38: Other | C38: 0 | D38: 0 | E38: 0 | F38: 0 | G38: 0 | H38: -
A39: Other | C39: 0 | D39: 0 | E39: 0 | F39: 0 | G39: 0 | H39: -
A41: Raw Material Usage | B41: Unit | C41: Q1 | D41: Q2 | E41: Q3 | F41: Q4 | G41: Year Total | H41: kg or Ltr /te
A42: Mains Water | B42: m3 | C42: 25321 | D42: 27366 | E42: 28596 | F42: 28576 | G42: =SUM(C42:F42) -> 109859 | H42: =IF(G42>0,G42/$G$21,"-") -> 0.3769213351
A43: Other Water | B43: m3 | C43: 412 | D43: 1263 | E43: 0 | F43: 0 | G43: 1675 | H43: =IF(G43>0,G43/$G$21,"-") -> 0.005746850383
A44: Ammonia | B44: t | C44: 375 | D44: 356 | E44: 341 | F44: 282 | G44: 1354 | H44: 0.004645513683
A45: Urea | B45: t | G45: =SUM(C45:F45) -> 0 | H45: -
A46: Activated Carbon | B46: t | C46: 26.9 | D46: 22.2 | E46: 20 | F46: 24.1 | G46: 93.2 | H46: 0.0003197650482
A47: Lime / hydrated lime | B47: t | C47: 1685 | D47: 1713 | E47: 1192 | F47: 1420 | G47: 6010 | H47: 0.02062004227
A48: Fuel oil | B48: ltrs | C48: 10242 | D48: 9422 | E48: 8100 | F48: 11450 | G48: 39214 | H48: 0.1345414871
A49: Gas | B49: 100's cf | C49: 7126 | D49: 6453 | E49: 5762 | F49: 4333 | G49: 23674
A50: Other | G50: 0
A52: Summary | B52: Line/Unit | C52: Q1 | D52: Q2 | E52: Q3 | F52: Q4 | G52: Year Total | I52: Hrs in year
A53: Availability of waste combustion by line, hrs **** | B53: 1 | C53: 1925 | D53: 1978 | E53: 1632 | F53: 2203 | G53: =SUM(C53:F53) -> 7738 | H53: =+G53/$I$53 -> 0.8809198543 | I53: 8784 | J53: Change this figure to 8784 in a leap year
B54: 2 | C54: 1980 | D54: 2092 | E54: 1684 | F54: 2136 | G54: 7892 | H54: =+G54/$I$53 -> 0.8984517304
B55: 3 | C55: 2165 | D55: 1920 | E55: 2203 | F55: 1756 | G55: 8044 | H55: 0.9157559199
B56: 4
B57: 5
A58: Overall Availability, mean avg. of all lines, hrs | G58: =AVERAGE(G53:G55) -> 7891.333333 | H58: 0.8983758349
A59: Hours of turbine operations, hrs | B59: 1 | C59: 0 | D59: 0 | E59: 0 | F59: 0 | G59: 0 | H59: 0
A60: Hours of turbine operations, hrs | B60: 2 | C60: 2182 | D60: 2153 | E60: 2207 | F60: 2208 | G60: 8750 | H60: 0.996129326
A61: Hours of heat / steam export | C61: 2182 | D61: 2153 | E61: 2207 | F61: 2208 | G61: 8750 | H61: =IF(B61>0,G60/I53,"n/a") -> n/a
A62: Net Calorific Value of waste | B62: GJ/T | C62: 9.4 | D62: 9.4 | E62: 9.4 | F62: 9.4
A63: Abnormal Events | B63: qty. | C63: 0 | D63: 0 | E63: 0 | F63: 0 | G63: 0 | H63: =IF(G63>0,"yes","no") -> no
A64: Abnormal operation | B64: hours | C64: 0 | D64: 0 | E64: 0 | F64: 0 | G64: 0 | H64: =+(G64)/I53 -> 0
A65: Permit Breaches | B65: qty. | C65: 0 | D65: 0 | E65: 0 | F65: 0 | G65: 0 | H65: =IF(G65>0,"yes","no") -> no
A67: Please note that the main turbine 'G1' was off line all year due to a catastrophic failure in 2023, therefore the amounts of power produced and exported will be much lower that would normally be expected for the plant capacity

Sheet Operational Summary
A1: =+'Cover Page'!$B$29 -> Annual Performance Report 2024 | E1: =+'Cover Page'!$B$33 -> The Coventry and Solihull Waste Disposal Company Limited
A3: Summary of Plant Operations and Maintenance during the reporting year | K3: Notes:
A5: Major outages took place in units 1, 2 and 3 which included replacement of all boiler riser bends due to suspected cracks Minor outages took place on all three units once in the year Explosive cleaning took place on inputs 2 and 3 14 times in the year There were 6 unplanned outages to repair grate damage totalling 330 hours There were boiler tube leaks requiring shut down and repair on all units totalling 125 hours All the above grate damage breakdowns were due to NOS cylinder explosions and the tube leaks were very likely to be caused by the explosions as well but it cannot be proven. The repairs to the main tubing 'G1' were on-going throughout the year. It is hoped to be online early in 2025 | K5: Include summary of key operational and/or maintenance activity undertaken in the year, such as any major component upgrades and/or replacements
A29: Summary of Residue Handling for the reporting year
A31: Incinerator bottom ash is separated and stored on site for collection by aggregate HGVs, which as loaded by crane before transporting the ash to a processing site which is operated by a third party. All metals are left mixed with the IBA and removed from site for processing by a third party (Johnsons Aggregates, Derby), and the metal is now separated by them on their premises. APCr is conveyed by the FGT system into storage silos. From there it is deposited into tankers (Lomas) for transportation to a third party processor (Augean). | K31: Include in here a summary of residue handling regimes and destinations
A54: =+'Cover Page'!C39 -> 2024 | B54: Plant shut-downs
A55: Date | B55: Reason for shut-down | K55: Provide a very brief reason for plant shut-down e.g. "Shut-down prior to major outage"; "Emergency shut-down due to boiler tube leak" There is no need to include periods of hot-standby here (e.g. to clear feed chute hopper blockages). For clinical waste incinerators which require regular shut-downs for boiler cleaning, there is no need to record these here.
A56: January | B56: Planned minor outage unit 1
A57: March | B57: Planned minor outage unit 2
A58: May | B58: Planned minor outage unit 3
A59: June | B59: Planned major outage unit 1
A60: September | B60: Planned major outage unit 2
A61: November | B61: Planned major outage unit 3
A62: January | B62: Grate damage repairs unit 1
A63: June | B63: Grate damage repairs unit 2
A64: July | B64: Grate damage repairs unit 2
A65: September | B65: Grate damage repairs unit 1
A66: September | B66: Grate damage repairs unit 1
A67: October | B67: Grate damage repairs unit 2
A68: January | B68: Tube leak repairs Unit 2
A69: February | B69: Tube leak repairs Unit 1
A70: June | B70: Tube leak repairs Unit 3

Sheet Perf. Form 1
A1: =+'Cover Page'!C39 -> 2024 | B1: Annual Reporting Performance Form 1
A3: =+'Cover Page'!B31 -> Permit EPR/NP3739PD/v009 | F3: Operator: | G3: =+'Cover Page'!B37 -> CSWDC
A4: Facility: | B4: =+'Cover Page'!B33:I33 -> The Coventry and Solihull Waste Disposal Company Limited | F4: Form: | G4: Performance 1
A6: Reporting Period from: | D6: 2024-01-01 | F6: to: | G6: 2024-12-31
A8: =+A1 -> 2024 | B8: Annual Reporting of Waste Disposal and Recovery
A9: Waste Description | C9: Disposal Route(s) | E9: Disposal Tonnes | G9: Recovery Tonnes | I9: % / tonne of waste incinerated
A10: 1) Hazardous Wastes
A11: APC Residues | C11: Pretreatent and landfill | E11: 12268.64 | I11: =IF((E11+G11)>0,(E11+G11)/'Operational Data'!$G$21, "-") -> 0.0420931573
A12: IBA | I12: =IF((E12+G12)>0,(E12+G12)/'Operational Data'!$G$21, "-") -> -
I13: =IF((E13+G13)>0,(E13+G13)/'Operational Data'!$G$21, "-") -> -
I14: =IF((E14+G14)>0,(E14+G14)/'Operational Data'!$G$21, "-") -> -
A15: Total Hazardous Waste | E15: =SUM(E11:F14) -> 12268.64 | G15: =SUM(G11:H14) -> 0 | I15: =IF((E15+G15)>0,(E15+G15)/'Operational Data'!$G$21, "-") -> 0.0420931573
A17: 2) Non-Hazardous Wastes
A18: IBA | C18: Recovery | E18: 44211.93 | I18: =IF((E18+G18)>0,(E18+G18)/'Operational Data'!$G$21, "-") -> 0.1516891623
A19: Ferrous Metal | C19: Recovery | E19: 4987.43 | I19: =IF((E19+G19)>0,(E19+G19)/'Operational Data'!$G$21, "-") -> 0.01711165015
A20: Process Water | C20: Disposal to foul sewer | E20: 58894 | I20: =IF((E20+G20)>0,(E20+G20)/'Operational Data'!$G$21, "-") -> 0.2020626904
I21: =IF((E21+G21)>0,(E21+G21)/'Operational Data'!$G$21, "-") -> -
I22: =IF((E22+G22)>0,(E22+G22)/'Operational Data'!$G$21, "-") -> -
A23: Total Non-Hazardous Waste | E23: =SUM(E18:F22) -> 108093.36 | G23: =SUM(G18:H22) -> 0 | I23: =IF((E23+G23)>0,(E23+G23)/'Operational Data'!$G$21, "-") -> 0.3708635029
A24: TOTAL WASTE | E24: =+E23+E15 -> 120362 | G24: =+G23+G15 -> 0 | I24: =IF((E24+G24)>0,(E24+G24)/'Operational Data'!$G$21, "-") -> 0.4129566602
A26: Operator’s comments :
A31: =+A1 -> 2024 | B31: Annual Reporting of Water and Other Raw Material Usage
A32: Raw Material | E32: Usage | G32: Unit | H32: Specific Usage | J32: Unit
A33: Mains Water | E33: =+'Operational Data'!G42 -> 109859 | G33: m3 | H33: =IF(E33>0,E33/'Operational Data'!$G$21,"-") -> 0.3769213351 | J33: m3/te
A34: Total Water | E34: =+'Operational Data'!G43+'Operational Data'!G42 -> 111534 | G34: m3 | H34: =IF(E34>0,E34/'Operational Data'!$G$21,"-") -> 0.3826681854 | J34: m3/te
A35: Urea / Ammonia | E35: =+'Operational Data'!G44 -> 1354 | G35: kg | H35: =IF(E35>0,E35/'Operational Data'!$G$21,"-") -> 0.004645513683 | J35: kg/te
A36: Activated Carbon | E36: =+'Operational Data'!G46 -> 93.2 | G36: kg | H36: =IF(E36>0,E36/'Operational Data'!$G$21,"-") -> 0.0003197650482 | J36: kg/te
A37: Lime / hydrated lime / Sodium Bicarb. | E37: =+'Operational Data'!G47 -> 6010 | G37: kg | H37: =IF(E37>0,E37/'Operational Data'!$G$21,"-") -> 0.02062004227 | J37: kg/te
A39: Operator’s comments :
A43: =+A31 -> 2024 | B43: Annual Reporting of other performance indicators
A44: Parameter | C44: Results by Line
C45: A1 | D45: A2 | E45: A3 | F45: A4 | G45: A5 | I45: Turbine 1 | J45: Turbine 2
A46: Operating hours for the year, hours | C46: ='Operational Data'!G53 -> 7738 | D46: ='Operational Data'!G54 -> 7892 | E46: ='Operational Data'!G55 -> 8044
A47: Number of periods of abnormal operation, qty. | C47: 0 | D47: 0 | E47: 0
A48: Cumulative hours of abnormal operation for this year, hours | C48: 0 | D48: 0 | E48: 0
A50: Operator’s comments :
A54: Signed: | B54: M Schilling | G54: Date: | H54: 2025-02-07

Sheet Energy Form 1
A1: =+'Cover Page'!C39 -> 2024 | B1: Annual Reporting of Energy Usage/Export
A3: =+'Cover Page'!B31 -> Permit EPR/NP3739PD/v009 | F3: Operator: | G3: =+'Cover Page'!B37 -> CSWDC
A5: Facility: | B5: =+'Cover Page'!B33:I33 -> The Coventry and Solihull Waste Disposal Company Limited | F5: Form: | G5: Energy 1
A7: Reporting Period from: | D7: =+'Perf. Form 1'!D6:E6 -> 2024-01-01 | F7: to: | G7: =+'Perf. Form 1'!G6:H6 -> 2024-12-31
A9: Energy Source | D9: Energy Usage | F9: Unit | G9: Specific Usage (KWh/tonne incinerated
A10: Electricity Produced | D10: =+'Operational Data'!G24 -> 38055.46 | F10: MWh | G10: =+'Operational Data'!H24 -> 130.566588
A11: Electricity Imported | D11: =+'Operational Data'!G27 -> 100 | F11: MWh | G11: =+'Operational Data'!H27 -> 0.3430955452
A12: Electricity Exported | D12: =+'Operational Data'!G25 -> 18177 | F12: MWh | G12: =+'Operational Data'!H25 -> 62.36447726
A13: Gas Oil | D13: 39214 | F13: tonnes
A14: Steam/hot water exported | D14: 15593 | F14: MWh | G14: =+'Operational Data'!H30 -> 53.50231933
A18: Operator’s comments :
A19: Please note that the main turbine 'G1' was off line all year due to a catastrophic failure in 2023, therefore the amounts of power produced and exported will be much lower that would normally be expected for the plant capacity
A29: Signed: | B29: M Schilling | G29: Date: | H29: 2025-02-07

Sheet Permit Compliance
A1: =+'Cover Page'!$B$29 -> Annual Performance Report 2024 | E1: =+'Cover Page'!$B$33 -> The Coventry and Solihull Waste Disposal Company Limited
A3: Summary of Permit Compliance
A5: Compliance with permit limits for continuously monitored pollutants
A7: The plant met its emission limits as shown in the table below:
A8: Substance | C8: Percentage time compliant during operationNote 1 | L8: Notes:
C9: Half-hourly limit | F9: Daily limit | L9: Note 1: Please report to 2 decimal places, i.e. xx.xx% Note 2: Please enter into this table any permit non-compliances that the EA has given a CCS score for. Please also enter any other non-compliances which you have notified to the EA (e.g. ELV exceedances) but which have not yet been assessed by the EA. There is no need to enter any notifications which were subsequently assessed by the EA not to be permit breaches. Note 3: Please enter information here (rather than just referencing the notifications that were sent to the EA) including where relevant the incineration line reference, pollutant and value of the measured result for any ELV exceedances.
A10: Particulates | C10: 1 | F10: 1
A11: Oxides of nitrogen | C11: 1 | F11: 1
A12: Sulphur dioxide | C12: 1 | F12: 1
A13: Carbon monoxide | C13: 100% 95% of 10-min averages | F13: 1
A14: Total organic carbon | C14: 1 | F14: 1
A15: Hydrogen chloride | C15: 1 | F15: 1
A16: Hydrogen fluoride | C16: 1 | F16: 1
A17: Ammonia | C17: 1 | F17: 1
A19: Summary of non-compliances under the permit Note 2
A20: Date | B20: Summary of non-compliance Note 3 | D20: Reason | G20: Measures taken to prevent reoccurrence | H20: CCS score if applicable*
H21: Impact | I21: Root cause
A27: *If the Environment Agency (EA) has given a Compliance Classification Scheme (CCS) score due to a permit non-compliance it should be entered here (CCS4 = No impact; CCS3 = Minor impact; CCS2 = Significant impact; CCS1 = Major impact). If the EA has not yet assessed a non-compliance which you have notified to them, these columns should be left blank. Enter N/A if no score was given for the root cause.
A29: Summary of any complaints received and actions to taken to resolve them.
A30: Date | B30: Summary of complaint [including Line/Reference] | E30: Reason (including whether substantiated by the operator or the EA) | H30: Measures taken to prevent reoccurrence
A31: 2024-06-07 | B31: Noise from pneumatic systems reported by neighbours | E31: Substaintiated, new air systems needed enclosures fitting | H31: Enclosures fitted
A32: 2024-07-03 | B32: Noise from hedge trimming tractor reported by neighbours | E32: Substantiated, hedge trimming was done in the evening and not communicated to residents | H32: Further works will be done after a letter drop advising of possible short term noise

Sheet Improvements
A1: =+'Cover Page'!$B$29 -> Annual Performance Report 2024 | E1: =+'Cover Page'!$B$33 -> The Coventry and Solihull Waste Disposal Company Limited
A3: Summary of Plant Improvements
A5: Summary of any efficiency improvements that have been completed within the year.
A6: On-going review and assessment of the abatement dosing chemicals to ensure dosing of consumables is balanced with emissions levels
A16: Summary of any permit improvement conditions that have been completed within the year and the resulting environmental benefits.
A17: Improvement Condition 1 (IC1) – this has been extended by the Environment Agency (EA) to 30/05/25 – it is an IC on NOx improvement and requires further time. EA now plan to instead start auditing OTNOC Management plans (including start-up and shut-down definitions) from May 2025 onwards. The EA are not asking operators to formally submit their plans to them for review, but the local site officer will ask the operator to send them a copy ahead of carrying out the audit. CSWDC have a plan and it’s in the process of being finalising ready for audit.
A27: Summary of any changes to the plant or operating techniques which required a variation to the permit and a summary of the resulting environmental impact.
A38: Summary of any other improvements made to the plant or planned to be made and a summary of the resulting environmental benefits.
A39: CSWDC has identified and will consider the following possible technical solutions to provide additional abatement for emissions of NOx and NH3, as follows: • Undertake further optimisation of the SNCR and combustion system by installing improved temperature roof measurement, ammonia injection and optimisation with Martin; • Installation and commission an FGR system; or Combustion optimisation with Martin GMBH - this will involve changes to the boiler. All of these options can only be undertaken during a period of extended shutdown, and it is not feasible to implement the improvement across all three lines at the same time. FGT filter bags renewed as planned on Unit 1 to ensure on-going particulate emissions control

Sheet Public Liasion
A1: =+'Cover Page'!$B$29 -> Annual Performance Report 2024 | E1: =+'Cover Page'!$B$33 -> The Coventry and Solihull Waste Disposal Company Limited
A3: Details of Public & Stakeholder Liaison
A5: Summary of events held during the reporting year.
A6: Date | C6: Description
A7: 2024-03-21 | C7: Local residents association site visit and plant tour
A9: 2024-04-24 | C9: Local residents association site visit and plant tour
A11: 2024-07-23 | C11: Site visit and tour by the Heatline owners and local university to assess potential for utilising available heat output
A16: List of events planned for next year
A17: Date | C17: Description
A29: If you wish to be involved in the public liaison programme, please contact _________________

Sheet CO2 N2O
A1: =+'Cover Page'!$B$29 -> Annual Performance Report 2024 | C1: =+'Cover Page'!$B$33 -> The Coventry and Solihull Waste Disposal Company Limited
A3: Carbon dioxide emissions and biogenic content of waste inputs | F3: Notes:
A5: Carbon dioxide emissions (all types of plant)
B6: Annual mass of carbon dioxide released | C6: tonnes | D6: 273887
B7: Annual mass of carbon dioxide released per tonne of waste burned | C7: t CO2 / t waste | D7: 0.9397
B8: Annual mass of carbon dioxide released per MWh of energy exported | C8: t CO2 / MWh export | D8: 15.07* | F8: *note - G1 turbine off-line all year due to failure May 2023
B9: Description of how annual carbon dioxide mass emission has been calculated. See Note 1 | C9: CEMs data used to record CO2 and flow with running hours to produce a mass value for the year. Please note that G1 the main turbine was off for the whole of 2024 awaiting parts and refurb following a major failure in May-23. Annual mass of carbon dioxide is then higher in 2024 at 15.07 however it was only 5.33 in 2023 . This is due to only have G2 available. To note we are still supplying majority of in house electricity to ourselves BRING energy and Sherbourne next door and supplying district heating to Coventry City Centre. When G1 returns to service this figure will normalise. | F9: Note 1: All permits require operators to continuously monitor CO2 to EN14181 and flow to BS EN 16911-2 (unless otherwise agreed in writing). Operators must therefore use the results from these instruments to calculate their annual CO2 emissions. Where an operator does not have a flow meter calibrated to BS EN 16911-2, the averaged flow measurement from that year's periodic monitoring can be used instead. If the plant does not have calibrated CO2 CEMS, a suitably justified emissions factor can be used.
A10: Nitrous oxide emissions (only plants which use ammonia or urea to abate NOx emissions)
B11: Annual mass emissions of nitrous oxide | C11: tonnes N2O | D11: 7.2
B12: Description of how annual nitrous oxide mass emission has been calculated See Note 2 | C12: CEMs data used to record N2O and flow with running hours to produce a mass value for the year | F12: Note 2: All permits require operators to continuously monitor N2O to EN14181 and flow to BS EN 16911-2, unless otherwise agreed in writing. Operators must therefore use the results from these instruments to calculate their annual N2O emissions. Where an operator does not have a flow meter calibrated to BS EN 16911-2, the averaged flow measurement from periodic monitoring can be used instead. If the plant does not have calibrated N2O CEMS, data from periodic monitoring or a suitably justified emissions factor can be used instead.
A13: Total annual carbon dioxide + nitrous oxide emissions. See Note 3. | C13: tonnes CO2e | D13: 275742 | F13: Note 3: Total annual carbon dioxide and nitrous oxide emissions reported as carbon dioxide equivalent where 1 tonne nitrous oxide is equivalent to 265 tonnes carbon dioxide. | H13: 7 | I13: 265 | J13: =+D6 -> 273887
A14: Biogenic CO2 emissions (See Note 4) | F14: Note 4: Only plants combusting residual municipal waste, refuse derived fuel or solid recovered fuel need complete this section. | I14: =SUM(H13*I13) -> 1855
B15: Percentage of total carbon dioxide emissions arising from biogenic waste | C15: % | D15: 0.6 | J15: =SUM(J13,I14) -> 275742
B16: No. of measurements undertaken | C16: Number | D16: 12
B17: Description of how percentage biogenic carbon dioxide emissions have been measured or calculated. See Note 5 | C17: C14 sampling on common exit duct | F17: Note 5: The results from C14 sampling should be used if this is carried out at the plant (either via an installed sampler or from spot samples). Otherwise, as an approximation (and in lieu of any more accurate metrics which may be developed in future), the measured or estimated biogenic fraction by net calorific value (see Note 6) can be assumed to be the same as the biogenic CO2 fraction of the total CO2 emissions from the plant.
A18: Biogenic fraction of waste feedstock (See Note 4)
B19: Yearly average biogenic percentage of the waste by net calorific value (NCV) | C19: % | D19: 0.55
B20: Description of how biogenic percentage (by NCV) has been calculated or estimated. See Note 6 | C20: Using the Fichtner calculation/formula | F20: Note 6: If C14 sampling is carried out at the plant, the methodology set out in the embedded document entitled "Renewable Energy Association Energy Content of Fuels - Description of Method" embedded below can be used to calculate the biogenic percentage by net calorific value. Otherwise, data from waste sampling or BIOMA software can be used; or if none of these are available, an estimated figure with justification or a figure assumed on the basis of up-to-date industry data can be used.
B21: Yearly average biogenic percentage of the waste by mass | C21: % | D21: 0.6002
B22: If waste sampling undertaken, no. of samples used to ascertain average biogenic percentages above | C22: Number | D22: 12
B23: Description of how biogenic percentage (by mass) has been calculated or estimated. See Note 7 | C23: Waste sampling data | F23: Note 7: Where available, data from waste sampling should be used; otherwise, an estimated figure with justification can be used, or a figure assumed on the basis of up-to-date industry data.
B25: Comments:

Sheet Residue Quality
A1: =+'Cover Page'!$B$29 -> Annual Performance Report 2024 | E1: =+'Cover Page'!$B$33 -> The Coventry and Solihull Waste Disposal Company Limited
A3: Residue Quality Monitoring Requirements
A5: Summary of monitoring undertaken and compliance
A6: Monthly IBA samples are collected and analysed by Element. All results within the limits. LOI analysis undertaken quarterly.
A13: Commentary on any specific events
A14: Date & Event | C14: Description
A15: 2024-12-01 | C15: IBA sample collection and coning and quartering undertaken by Element in front of EA witnesses x3 as part of an audit. All observations were compliant
A27: Residue Quality Monitoring Results
A28: Parameter (unit) | C28: Limit* | D28: Normal Operation
D29: Bottom ash | F29: APC Residues
A30: Loss on Ignition (average %) | C30: <5% | D30: 0.0178
A31: Total Organic Carbon (average %) | C31: <3% | D31: n/a
A32: No. of Assessments Undertaken | C32: --- | D32: 4 per unit
A33: No. of Hazardous Results | C33: --- | D33: 0
A34: * The permit will specify a limit of either 5% loss on ignition or 3% total organic carbon. If both are measured anyway, please enter the results here, even where the limit does not apply.
A36: Comments :

Sheet Water
A1: =+'Cover Page'!$B$29 -> Annual Performance Report 2024 | E1: =+'Cover Page'!$B$33 -> The Coventry and Solihull Waste Disposal Company Limited
A3: Emissions to Water
A5: Summary of monitoring undertaken and compliance
A6: Weekly ph measurement taken of ash quench effluent before dispsoal to sewer by water treament contractors
A8: Effluent qualities monitored by STW
A13: Commentary on any specific events
A14: Date & Event | C14: Description
A22: Emissions to Water / Sewer
A23: Parameter | D23: Monitoring Frequency | F23: Limit | G23: Target | H23: Max. | I23: Average
A24: PH | D24: weekly | F24: 12 | G24: 9 | H24: 10.1 | I24: 8.2

Sheet Air (periodic)
A1: =+'Cover Page'!$B$29 -> Annual Performance Report 2024 | E1: =+'Cover Page'!$B$33 -> The Coventry and Solihull Waste Disposal Company Limited
A3: Emissions to Air (periodically monitored)
A5: Summary of monitoring undertaken, standards used and compliance | K5: Notes:
K6: Template may require adjustment for any bespoke monitoring requirements of permit - please also check that all default ELV values, reference periods and the stated oxygen reference value match those for your plant, and edit if necessary!
A9: Results of emissions to air that are periodically monitored - oxygen reference 11%
A10: Substance | C10: Ref. Period | D10: Emission Limit Value | F10: Average | K10: User to add additional tables as necessary, depending on whether quarterly or bi-annual reporting is required for the compliance year
F11: A1 | G11: A2 | H11: A3 | I11: A4 | J11: A5
A12: Hydrogen fluoride | C12: 1 hr | D12: 1 mg/m3 | F12: 0.105 | G12: 0.115 | H12: 0.054
A13: Cd and Tl and their compounds | C13: 0.5-8hrs | D13: 0.02 mg/m3 | F13: 0.00084 | G13: 0.0008 | H13: 0.0016
A14: Hg and its compounds | C14: 0.5-8hrs | D14: 0.02 mg/m3 | F14: 0.00059 | G14: 0.000335 | H14: 0.000765
A15: Sb, As, Pb, Cr, Co, Cu, Mn, Ni, V and their compounds | C15: 0.5-8hrs | D15: 0.3 mg/m3 | F15: 0.0345 | G15: 0.0306 | H15: 0.0115
A16: Dioxins & Furans (I-TEQ) | C16: 6-8hrs | D16: 0.06 ng/m3 | F16: 0.02595 | G16: 0.00445 | H16: 0.00215
A17: PCBs (WHO-TEQ Humans / Mammals) | C17: 6-8hrs | D17: None set ng/m3 | F17: 0.003515 | G17: 0.002191 | H17: 0.0001925
A18: PCBs (WHO-TEQ Fish) | C18: 6-8hrs | D18: None set ng/m3 | F18: 7.55e-05 | G18: 1.5e-05 | H18: 0.0001925
A19: PCBs (WHO-TEQ Birds) | C19: 6-8hrs | D19: None set ng/m3 | F19: 0.002865 | G19: 0.0009465 | H19: 0.000682
A20: Dioxins & Furans (WHO-TEQ Humans / Mammals) | C20: 6-8hrs | D20: None set ng/m3 | F20: 0.0244 | G20: 0.0044 | H20: 0.0018
A21: Dioxins & Furans (WHO-TEQ Fish) | C21: 6-8hrs | D21: None set ng/m3 | F21: 0.02825 | G21: 0.00475 | H21: 0.00195
A22: Dioxins & Furans (WHO-TEQ Birds) | C22: 6-8hrs | D22: None set ng/m3 | F22: 0.0492 | G22: 0.0087 | H22: 0.00475
A23: Anthanthrene | C23: 6-8hrs | D23: None set µg/m3 | F23: 0.00135 | G23: 0.0013 | H23: 0.00155
A24: Benzo(a)anthracene | C24: 6-8hrs | D24: None set µg/m3 | F24: 0.0319 | G24: 0.02775 | H24: 0.0249
A25: Benzo(a)pyrene | C25: 6-8hrs | D25: None set µg/m3 | F25: 0.00405 | G25: 0.004 | H25: 0.00395
A26: Benzo(b)fluoranthene | C26: 6-8hrs | D26: None set µg/m3 | F26: 0.01115 | G26: 0.00855 | H26: 0.00805
A27: Benzo(b)naptho(2,1-d) thiophene | C27: 6-8hrs | D27: None set µg/m3 | F27: 0.01025 | G27: 0.0091 | H27: 0.0082
A28: Benzo(c)phenanthrene | C28: 6-8hrs | D28: None set µg/m3 | F28: 0.00955 | G28: 0.0086 | H28: 0.0072
A29: Benzo(ghi)perylene | C29: 6-8hrs | D29: None set µg/m3 | F29: 0.002 | G29: 0.0022 | H29: 0.0017
A30: Benzo(k)fluoranthene | C30: 6-8hrs | D30: None set µg/m3 | F30: 0.00525 | G30: 0.0039 | H30: 0.0036
A31: Cholanthrene | C31: 6-8hrs | D31: None set µg/m3 | F31: 0.00135 | G31: 0.0013 | H31: 0.00155
A32: Chrysene | C32: 6-8hrs | D32: None set µg/m3 | F32: 0.0327 | G32: 0.0269 | H32: 0.02435
A33: Cyclopenta(cd)pyrene | C33: 6-8hrs | D33: None set µg/m3 | F33: 0.00135 | G33: 0.00285 | H33: 0.0163
A34: Dibenzo(ai)pyrene | C34: 6-8hrs | D34: None set µg/m3 | F34: 0.00135 | G34: 0.0013 | H34: 0.00155
A35: Dibenzo(ah)anthracene | C35: 6-8hrs | D35: None set µg/m3 | F35: 0.00135 | G35: 0.0013 | H35: 0.00155
A36: Fluoranthene | C36: 6-8hrs | D36: None set µg/m3 | F36: 0.9967 | G36: 0.9045 | H36: 0.7528
A37: Indeno(123-cd) pyrene | C37: 6-8hrs | D37: None set µg/m3 | F37: 0.0021 | G37: 0.0017 | H37: 0.00185
A38: Naphthalene | C38: 6-8hrs | D38: None set µg/m3 | F38: 0.6523 | G38: 0.7512 | H38: 4.31045
A39: Comments :

Sheet Air (CEMS)
A1: =+'Cover Page'!$B$29 -> Annual Performance Report 2024 | I1: =+'Cover Page'!$B$33 -> The Coventry and Solihull Waste Disposal Company Limited
A3: Emissions to Air (continuously monitored)
N4: Notes:
A5: Summary of monitoring undertaken, standards used and compliance | N5: Template may require adjustment for any bespoke monitoring requirements of permit
N6: Please check that all default ELV values match those for your plant and edit if necessary!
N7: Report to 1 decimal place
A11: Results of emissions to air that are continuously monitored (maximum and average values for each line) - oxygen reference 11%
A12: Substance | B12: Reference Period | C12: Emission Limit Value | D12: A1 | F12: A2 | H12: A3 | J12: A4 | L12: A5
D13: Max. | E13: Avg. | F13: Max. | G13: Avg. | H13: Max. | I13: Avg. | J13: Max. | K13: Avg. | L13: Max. | M13: Avg.
A14: Oxides of nitrogen | B14: Daily mean | C14: 180 mg/m3 | D14: =NOx!O19 -> 177.98 | E14: =NOx!N19 -> 164.2258333 | F14: =NOx!O34 -> 178.21 | G14: =NOx!N34 -> 164.875 | H14: =NOx!O49 -> 177.61 | I14: =NOx!N49 -> 165.0933333
B15: ½ hourly mean | C15: 400 mg/m3 | D15: =NOx!M19 -> 309.71 | E15: =NOx!L19 -> 164.06 | F15: =NOx!M34 -> 307.62 | G15: =NOx!L34 -> 164.72 | H15: =NOx!M49 -> 287.98 | I15: =NOx!L49 -> 165.02
A16: Particulates | B16: Daily mean | C16: 5 mg/m3 | D16: =Particulates!O19 -> 4.08 | E16: =Particulates!N19 -> 1.210833333 | F16: =Particulates!O34 -> 1.03 | G16: =Particulates!N34 -> 0.4658333333 | H16: =Particulates!O49 -> 0.42 | I16: =Particulates!N49 -> 0.3425
B17: ½ hourly mean | C17: 30 mg/m3 | D17: =Particulates!M19 -> 16.3 | E17: =Particulates!L19 -> 1.215833333 | F17: =Particulates!M34 -> 3.51 | G17: =Particulates!L34 -> 0.47 | H17: =Particulates!M49 -> 2.32 | I17: =Particulates!L49 -> 0.3441666667
A18: Total Organic Carbon | B18: Daily mean | C18: 10 mg/m3 | D18: =TOC!O19 -> 1.51 | E18: =TOC!N19 -> 0.9183333333 | F18: =TOC!O34 -> 1.31 | G18: =TOC!N34 -> 0.41 | H18: =TOC!O49 -> 1.61 | I18: =TOC!N49 -> 0.755
B19: ½ hourly mean | C19: 20 mg/m3 | D19: =TOC!M19 -> 8.86 | E19: =TOC!L19 -> 0.9208333333 | F19: =TOC!M34 -> 6.61 | G19: =TOC!L34 -> 0.4175 | H19: =TOC!M49 -> 11.32 | I19: =TOC!L49 -> 0.7508333333
A20: Hydrogen chloride | B20: Daily mean | C20: 8 mg/m3 | D20: =HCl!O19 -> 3.89 | E20: =HCl!N19 -> 1.411666667 | F20: =HCl!O34 -> 1.52 | G20: =HCl!N34 -> 0.415 | H20: =HCl!O49 -> 2.77 | I20: =HCl!N49 -> 1.39
B21: ½ hourly mean | C21: 60 mg/m3 | D21: =HCl!M19 -> 13.93 | E21: =HCl!L19 -> 1.41 | F21: =HCl!M34 -> 25.51 | G21: =HCl!L34 -> 0.4083333333 | H21: =HCl!M49 -> 6.47 | I21: =HCl!L49 -> 1.386666667
A22: Sulphur dioxide | B22: Daily mean | C22: 40 mg/m3 | D22: ='SO2'!O19 -> 39.02 | E22: ='SO2'!N19 -> 33.15833333 | F22: ='SO2'!O34 -> 37.36 | G22: ='SO2'!N34 -> 30.81083333 | H22: ='SO2'!O49 -> 34.99 | I22: ='SO2'!N49 -> 27.64416667
B23: ½ hourly mean | C23: 200 mg/m3 | D23: ='SO2'!M19 -> 166.14 | E23: ='SO2'!L19 -> 33.01 | F23: ='SO2'!M34 -> 170.6 | G23: ='SO2'!L34 -> 30.62 | H23: ='SO2'!M49 -> 118.28 | I23: ='SO2'!L49 -> 27.4875
A24: Carbon monoxide | B24: Daily mean | C24: 50 mg/m3 | D24: ='CO 95% 10 min'!Q19 -> 24.42 | E24: ='CO 95% 10 min'!P19 -> 16.93 | F24: ='CO 95% 10 min'!Q34 -> 33.68 | G24: ='CO 95% 10 min'!P34 -> 17.11 | H24: ='CO 95% 10 min'!Q49 -> 31.05 | I24: ='CO 95% 10 min'!P49 -> 22.59
B25: ½ hourly mean * | C25: 100 mg/m3 *
B26: 95%ile 10-min avg * | C26: 150 mg/m3 * | D26: ='CO 95% 10 min'!M19 -> 67.39 | E26: ='CO 95% 10 min'!N19 -> 16.93 | F26: ='CO 95% 10 min'!M34 -> 94.67 | G26: ='CO 95% 10 min'!N34 -> 16.89 | H26: ='CO 95% 10 min'!M49 -> 64.7 | I26: ='CO 95% 10 min'!N49 -> 22.6
A27: Ammonia | B27: Daily mean | C27: 15 mg/m3 | D27: ='NH3'!O19 -> 14.11 | E27: ='NH3'!N19 -> 8.685 | F27: ='NH3'!O34 -> 14.12 | G27: ='NH3'!N34 -> 9.8925 | H27: ='NH3'!O49 -> 13.51 | I27: ='NH3'!N49 -> 9.518333333
A28: * = delete as appropriate, depending on whether your plant has half-hourly or 10-min CO ELVs
A29: Comments :

Sheet HCl
A1: =+'Cover Page'!$B$29 -> Annual Performance Report 2024 | E1: =+'Cover Page'!$B$33 -> The Coventry and Solihull Waste Disposal Company Limited
A3: Monitoring of Hydrogen Chloride emissions | D3: Whole Installation | G3: See Notes in Cell Q3 | J3: =+A3 -> Monitoring of Hydrogen Chloride emissions | N3: Per Combustion Line | Q3: Notes:
Q4: User to add logic to complete Whole installation, Table A5:G18. From the data in Per Combustion Line, Table J6:O79, subject to No. of lines installed
A5: =+'Cover Page'!C39 -> 2024 | B5: 1/2 Hourly Reference Periods | E5: Daily Reference Periods
A6: mg/Nm3 | B6: 1/2 hourly HCl ELV | C6: Monthly mean of half-hourly averages | D6: Highest half- hourly average | E6: Daily HCl ELV | F6: Monthly mean of daily averages | G6: Highest daily average | J6: =+A5 -> 2024 | K6: mg/Nm3 | L6: Monthly mean of half-hourly averages | M6: Highest half- hourly average | N6: Monthly mean of daily averages | O6: Highest daily average
A7: Jan | B7: 60 | C7: 1.1 | D7: 20.57 | E7: 8 | F7: 1.09 | G7: 2.21 | J7: A1 | K7: Jan | L7: 1.38 | M7: 10.39 | N7: 1.37 | O7: 2.21
A8: Feb | B8: 60 | C8: 1.06 | D8: 13.93 | E8: 8 | F8: 1.04 | G8: 1.78 | K8: Feb | L8: 1.39 | M8: 13.93 | N8: 1.38 | O8: 1.59
A9: Mar | B9: 60 | C9: 1.05 | D9: 3.57 | E9: 8 | F9: 1.07 | G9: 1.74 | K9: Mar | L9: 1.49 | M9: 3.37 | N9: 1.5 | O9: 1.74 | Q9: Whole Installation table A5:G18:
A10: Apr | B10: 60 | C10: 1.05 | D10: 3.1 | E10: 8 | F10: 1.05 | G10: 1.85 | K10: Apr | L10: 1.63 | M10: 3.1 | N10: 1.63 | O10: 1.85 | Q10: Mean: for 1/2 hourly and daily periods calculate mean of values across all operational combustion lines for the month
A11: May | B11: 60 | C11: 0.99 | D11: 6.25 | E11: 8 | F11: 0.99 | G11: 1.86 | K11: May | L11: 1.7 | M11: 2.94 | N11: 1.7 | O11: 1.86
A12: Jun | B12: 60 | C12: 0.99 | D12: 8.16 | E12: 8 | F12: 1.01 | G12: 2.13 | K12: Jun | L12: 1.88 | M12: 8.16 | N12: 1.87 | O12: 2.13
A13: Jul | B13: 60 | C13: 0.88 | D13: 4.09 | E13: 8 | F13: 0.89 | G13: 1.56 | K13: Jul | L13: 1.04 | M13: 1.82 | N13: 1.04 | O13: 1.32 | Q13: Maximum: for 1/2 hourly and daily periods use the highest value across all operational combustion lines for the month
A14: Aug | B14: 60 | C14: 1.17 | D14: 7.47 | E14: 8 | F14: 1.19 | G14: 3.89 | K14: Aug | L14: 1.35 | M14: 7.47 | N14: 1.41 | O14: 3.89
A15: Sep | B15: 60 | C15: 1.36 | D15: 6.41 | E15: 8 | F15: 1.38 | G15: 2.77 | K15: Sep | L15: 1.51 | M15: 3.49 | N15: 1.5 | O15: 1.92
A16: Oct | B16: 60 | C16: 0.98 | D16: 4.18 | E16: 8 | F16: 1 | G16: 2.16 | K16: Oct | L16: 0.96 | M16: 2.7 | N16: 0.96 | O16: 1.51
A17: Nov | B17: 60 | C17: 0.93 | D17: 25.51 | E17: 8 | F17: 0.92 | G17: 1.82 | K17: Nov | L17: 1.05 | M17: 3.85 | N17: 1.05 | O17: 1.82
A18: Dec | B18: 60 | C18: 1.4 | D18: 4.63 | E18: 8 | F18: 1.41 | G18: 2.64 | K18: Dec | L18: 1.54 | M18: 4.63 | N18: 1.53 | O18: 2.33
K19: Annual | L19: =AVERAGE(L7:L18) -> 1.41 | M19: =MAX(M7:M18) -> 13.93 | N19: =AVERAGE(N7:N18) -> 1.411666667 | O19: =MAX(O7:O18) -> 3.89
J21: =+A5 -> 2024 | K21: mg/Nm3 | L21: Monthly mean of half-hourly averages | M21: Highest half- hourly average | N21: Monthly mean of daily averages | O21: Highest daily average
J22: A2 | K22: Jan | L22: 0.68 | M22: 20.57 | N22: 0.69 | O22: 1.52
K23: Feb | L23: 0.59 | M23: 2.52 | N23: 0.59 | O23: 1.12
K24: Mar | L24: 0.16 | M24: 2.12 | N24: 0.16 | O24: 0.46
K25: Apr | L25: 0.13 | M25: 1.96 | N25: 0.13 | O25: 0.32
K26: May | L26: 0.25 | M26: 1.7 | N26: 0.25 | O26: 0.57
K27: Jun | L27: 0.35 | M27: 6.21 | N27: 0.37 | O27: 0.68
K28: Jul | L28: 0.49 | M28: 1.86 | N28: 0.49 | O28: 0.83
K29: Aug | L29: 0.71 | M29: 3.63 | N29: 0.72 | O29: 1.02
K30: Sep | L30: 0.11 | M30: 3.79 | N30: 0.13 | O30: 0.96
K31: Oct | L31: 0.3 | M31: 3.23 | N31: 0.3 | O31: 0.56
K32: Nov | L32: 0.56 | M32: 25.51 | N32: 0.56 | O32: 1.13
K33: Dec | L33: 0.57 | M33: 4.31 | N33: 0.59 | O33: 1.3
K34: Annual | L34: =AVERAGE(L22:L33) -> 0.4083333333 | M34: =MAX(M22:M33) -> 25.51 | N34: =AVERAGE(N22:N33) -> 0.415 | O34: =MAX(O22:O33) -> 1.52
J36: =+A5 -> 2024 | K36: mg/Nm3 | L36: Monthly mean of half-hourly averages | M36: Highest half- hourly average | N36: Monthly mean of daily averages | O36: Highest daily average
J37: A3 | K37: Jan | L37: 1.3 | M37: 4.27 | N37: 1.31 | O37: 1.74
K38: Feb | L38: 1.21 | M38: 6.47 | N38: 1.21 | O38: 1.78
K39: Mar | L39: 1.26 | M39: 3.57 | N39: 1.26 | O39: 1.7
K40: Apr | L40: 1.38 | M40: 2.64 | N40: 1.38 | O40: 1.77
K41: May | L41: 1.04 | M41: 6.25 | N41: 1.03 | O41: 1.59
K42: Jun | L42: 0.87 | M42: 4.95 | N42: 0.86 | O42: 1.25
K43: Jul | L43: 1.18 | M43: 4.09 | N43: 1.18 | O43: 1.56
K44: Aug | L44: 1.43 | M44: 6.38 | N44: 1.43 | O44: 2.08
K45: Sep | L45: 1.71 | M45: 6.41 | N45: 1.71 | O45: 2.77
K46: Oct | L46: 1.64 | M46: 4.18 | N46: 1.64 | O46: 2.16
K47: Nov | L47: 1.54 | M47: 4.84 | N47: 1.56 | O47: 1.79
A48: Comments : | K48: Dec | L48: 2.08 | M48: 4.21 | N48: 2.11 | O48: 2.64
K49: Annual | L49: =AVERAGE(L37:L48) -> 1.386666667 | M49: =MAX(M37:M48) -> 6.47 | N49: =AVERAGE(N37:N48) -> 1.39 | O49: =MAX(O37:O48) -> 2.77
J51: =+A5 -> 2024 | K51: mg/Nm3 | L51: Monthly mean of half-hourly averages | M51: Highest half- hourly average | N51: Monthly mean of daily averages | O51: Highest daily average
J52: A4 | K52: Jan
K53: Feb
K54: Mar
K55: Apr
K56: May
K57: Jun
K58: Jul
K59: Aug
K60: Sep
K61: Oct
K62: Nov
K63: Dec
K64: Annual | L64: =AVERAGE(L52:L63) ->  | M64: =MAX(M52:M63) -> 0 | N64: =AVERAGE(N52:N63) ->  | O64: =MAX(O52:O63) -> 0
J66: =+A5 -> 2024 | K66: mg/Nm3 | L66: Monthly mean of half-hourly averages | M66: Highest half- hourly average | N66: Monthly mean of daily averages | O66: Highest daily average
J67: A5 | K67: Jan
K68: Feb
K69: Mar
K70: Apr
K71: May
K72: Jun
K73: Jul
K74: Aug
K75: Sep
K76: Oct
K77: Nov
K78: Dec
K79: Annual | L79: =AVERAGE(L67:L78) ->  | M79: =MAX(M67:M78) -> 0 | N79: =AVERAGE(N67:N78) ->  | O79: =MAX(O67:O78) -> 0

Sheet SO2
A1: =+'Cover Page'!$B$29 -> Annual Performance Report 2024 | E1: =+'Cover Page'!$B$33 -> The Coventry and Solihull Waste Disposal Company Limited
A3: Monitoring of Sulphur dioxide emissions | D3: Whole Installation | G3: See Notes in Cell Q3 | J3: =+A3 -> Monitoring of Sulphur dioxide emissions | N3: Per Combustion Line | Q3: Notes:
Q4: User to add logic to complete Whole installation, Table A5:G18. From the data in Per Combustion Line, Table J6:O79, subject to No. of lines installed
A5: =+'Cover Page'!C39 -> 2024 | B5: 1/2 Hourly Reference Periods | E5: Daily Reference Periods
A6: mg/Nm3 | B6: 1/2 hourly SO2 ELV | C6: Monthly mean of half-hourly averages | D6: Highest half- hourly average | E6: Daily SO2 ELV | F6: Monthly mean of daily averages | G6: Highest daily average | J6: =+A5 -> 2024 | K6: mg/Nm3 | L6: Monthly mean of half-hourly averages | M6: Highest half- hourly average | N6: Monthly mean of daily averages | O6: Highest daily average
A7: Jan | B7: 200 | C7: 27.93 | D7: 126.34 | E7: 40 | F7: 28.09 | G7: 35.47 | J7: A1 | K7: Jan | L7: 30.93 | M7: 126.34 | N7: 31.34 | O7: 35.47
A8: Feb | B8: 200 | C8: 31.45 | D8: 166.14 | E8: 40 | F8: 31.5 | G8: 37.36 | K8: Feb | L8: 32.21 | M8: 166.14 | N8: 32.23 | O8: 34.99
A9: Mar | B9: 200 | C9: 31.4 | D9: 149.16 | E9: 40 | F9: 31.46 | G9: 39.02 | K9: Mar | L9: 33.01 | M9: 149.16 | N9: 33.01 | O9: 39.02 | Q9: Whole Installation table A5:G18:
A10: Apr | B10: 200 | C10: 31.62 | D10: 142 | E10: 40 | F10: 31.63 | G10: 36.02 | K10: Apr | L10: 33.42 | M10: 118.07 | N10: 33.51 | O10: 36.02 | Q10: Mean: for 1/2 hourly and daily periods calculate mean of values across all operational combustion lines for the month
A11: May | B11: 200 | C11: 30.01 | D11: 98.21 | E11: 40 | F11: 30.11 | G11: 36.2 | K11: May | L11: 32.97 | M11: 80.14 | N11: 32.97 | O11: 36.2
A12: Jun | B12: 200 | C12: 28.28 | D12: 144.54 | E12: 40 | F12: 28.39 | G12: 35.55 | K12: Jun | L12: 33.36 | M12: 119.95 | N12: 33.09 | O12: 35.55
A13: Jul | B13: 200 | C13: 27.94 | D13: 84.49 | E13: 40 | F13: 27.95 | G13: 33.63 | K13: Jul | L13: 30.63 | M13: 65.97 | N13: 30.65 | O13: 33.63 | Q13: Maximum: for 1/2 hourly and daily periods use the highest value across all operational combustion lines for the month
A14: Aug | B14: 200 | C14: 31.51 | D14: 97.07 | E14: 40 | F14: 31.93 | G14: 35.21 | K14: Aug | L14: 32.13 | M14: 97.07 | N14: 33.38 | O14: 35.21
A15: Sep | B15: 200 | C15: 31.2 | D15: 87.98 | E15: 40 | F15: 31.47 | G15: 35.1 | K15: Sep | L15: 34.22 | M15: 68.61 | N15: 34.49 | O15: 35.1
A16: Oct | B16: 200 | C16: 31.76 | D16: 109.11 | E16: 40 | F16: 31.87 | G16: 35.32 | K16: Oct | L16: 34.37 | M16: 93.56 | N16: 34.37 | O16: 35.32
A17: Nov | B17: 200 | C17: 32.46 | D17: 129.58 | E17: 40 | F17: 32.76 | G17: 37.13 | K17: Nov | L17: 34.54 | M17: 129.58 | N17: 34.54 | O17: 37.13
A18: Dec | B18: 200 | C18: 31.43 | D18: 170.6 | E18: 40 | F18: 31.81 | G18: 38.86 | K18: Dec | L18: 34.33 | M18: 116.44 | N18: 34.32 | O18: 38.86
K19: Annual | L19: =AVERAGE(L7:L18) -> 33.01 | M19: =MAX(M7:M18) -> 166.14 | N19: =AVERAGE(N7:N18) -> 33.15833333 | O19: =MAX(O7:O18) -> 39.02
J21: =+A5 -> 2024 | K21: mg/Nm3 | L21: Monthly mean of half-hourly averages | M21: Highest half- hourly average | N21: Monthly mean of daily averages | O21: Highest daily average
J22: A2 | K22: Jan | L22: 31.13 | M22: 108.93 | N22: 31.12 | O22: 35.43
K23: Feb | L23: 33.3 | M23: 158.57 | N23: 33.31 | O23: 37.36
K24: Mar | L24: 32.14 | M24: 102.75 | N24: 32.48 | O24: 35.21
K25: Apr | L25: 32.27 | M25: 142 | N25: 32.21 | O25: 34.5
K26: May | L26: 30.63 | M26: 98.21 | N26: 30.63 | O26: 32.55
K27: Jun | L27: 28.88 | M27: 144.54 | N27: 29.41 | O27: 31.62
K28: Jul | L28: 28.89 | M28: 60.36 | N28: 29.02 | O28: 32.07
K29: Aug | L29: 33.01 | M29: 79.03 | N29: 33.15 | O29: 34.94
K30: Sep | L30: 22.08 | M30: 72.63 | N30: 22.65 | O30: 34.57
K31: Oct | L31: 29.5 | M31: 109.11 | N31: 29.68 | O31: 35.16
K32: Nov | L32: 33.62 | M32: 89.2 | N32: 33.62 | O32: 35.07
K33: Dec | L33: 31.99 | M33: 170.6 | N33: 32.45 | O33: 35.72
K34: Annual | L34: =AVERAGE(L22:L33) -> 30.62 | M34: =MAX(M22:M33) -> 170.6 | N34: =AVERAGE(N22:N33) -> 30.81083333 | O34: =MAX(O22:O33) -> 37.36
J36: =+A5 -> 2024 | K36: mg/Nm3 | L36: Monthly mean of half-hourly averages | M36: Highest half- hourly average | N36: Monthly mean of daily averages | O36: Highest daily average
J37: A3 | K37: Jan | L37: 22.63 | M37: 60.31 | N37: 22.92 | O37: 29.53
K38: Feb | L38: 28.89 | M38: 113.35 | N38: 28.96 | O38: 31.59
K39: Mar | L39: 29.23 | M39: 118.28 | N39: 29.23 | O39: 31.77
K40: Apr | L40: 29.25 | M40: 81.11 | N40: 29.26 | O40: 31.82
K41: May | L41: 25.32 | M41: 73.88 | N41: 25.36 | O41: 30.04
K42: Jun | L42: 23.33 | M42: 57.92 | N42: 23.25 | O42: 27.26
K43: Jul | L43: 25.64 | M43: 84.49 | N43: 25.64 | O43: 29.72
K44: Aug | L44: 29.52 | M44: 81.29 | N44: 29.52 | O44: 34.22
K45: Sep | L45: 32.3 | M45: 87.98 | N45: 32.3 | O45: 34.56
K46: Oct | L46: 31.29 | M46: 72.02 | N46: 31.28 | O46: 34.99
K47: Nov | L47: 24.54 | M47: 67.59 | N47: 25.55 | O47: 34.3
A48: Comments : | K48: Dec | L48: 27.91 | M48: 77.67 | N48: 28.46 | O48: 34.52
K49: Annual | L49: =AVERAGE(L37:L48) -> 27.4875 | M49: =MAX(M37:M48) -> 118.28 | N49: =AVERAGE(N37:N48) -> 27.64416667 | O49: =MAX(O37:O48) -> 34.99
J51: =+A5 -> 2024 | K51: mg/Nm3 | L51: Monthly mean of half-hourly averages | M51: Highest half- hourly average | N51: Monthly mean of daily averages | O51: Highest daily average
J52: A4 | K52: Jan
K53: Feb
K54: Mar
K55: Apr
K56: May
K57: Jun
K58: Jul
K59: Aug
K60: Sep
K61: Oct
K62: Nov
K63: Dec
K64: Annual | L64: =AVERAGE(L52:L63) ->  | M64: =MAX(M52:M63) -> 0 | N64: =AVERAGE(N52:N63) ->  | O64: =MAX(O52:O63) -> 0
J66: =+A5 -> 2024 | K66: mg/Nm3 | L66: Monthly mean of half-hourly averages | M66: Highest half- hourly average | N66: Monthly mean of daily averages | O66: Highest daily average
J67: A5 | K67: Jan
K68: Feb
K69: Mar
K70: Apr
K71: May
K72: Jun
K73: Jul
K74: Aug
K75: Sep
K76: Oct
K77: Nov
K78: Dec
K79: Annual | L79: =AVERAGE(L67:L78) ->  | M79: =MAX(M67:M78) -> 0 | N79: =AVERAGE(N67:N78) ->  | O79: =MAX(O67:O78) -> 0

Sheet NOx
A1: =+'Cover Page'!$B$29 -> Annual Performance Report 2024 | E1: =+'Cover Page'!$B$33 -> The Coventry and Solihull Waste Disposal Company Limited
A3: Monitoring of Oxides of Nitrogen emissions | D3: Whole Installation | G3: See Notes in Cell Q3 | J3: =+A3 -> Monitoring of Oxides of Nitrogen emissions | N3: Per Combustion Line | Q3: Notes:
Q4: User to add logic to complete Whole installation, Table A5:G18. From the data in Per Combustion Line, Table J6:O79, subject to No. of lines installed
A5: =+'Cover Page'!C39 -> 2024 | B5: 1/2 Hourly Reference Periods | E5: Daily Reference Periods
A6: mg/Nm3 | B6: 1/2 hourly NOx ELV | C6: Monthly mean of half-hourly averages | D6: Highest half- hourly average | E6: Daily NOx ELV | F6: Monthly mean of daily averages | G6: Highest daily average | J6: =+A5 -> 2024 | K6: mg/Nm3 | L6: Monthly mean of half-hourly averages | M6: Highest half- hourly average | N6: Monthly mean of daily averages | O6: Highest daily average
A7: Jan | B7: 400 | C7: 164.84 | D7: 285.5 | E7: 180 | F7: 164.84 | G7: 177.65 | J7: A1 | K7: Jan | L7: 170.06 | M7: 285.5 | N7: 170.46 | O7: 177.65
A8: Feb | B8: 400 | C8: 167.75 | D8: 256.7 | E8: 180 | F8: 167.89 | G8: 177.76 | K8: Feb | L8: 170.28 | M8: 256.7 | N8: 169.97 | O8: 177.76
A9: Mar | B9: 400 | C9: 166.64 | D9: 263.86 | E9: 180 | F9: 166.81 | G9: 176.02 | K9: Mar | L9: 167.13 | M9: 263.86 | N9: 167.11 | O9: 176.02 | Q9: Whole Installation table A5:G18:
A10: Apr | B10: 400 | C10: 160.73 | D10: 304.99 | E10: 180 | F10: 160.8 | G10: 177.98 | K10: Apr | L10: 163.37 | M10: 304.99 | N10: 163.53 | O10: 177.98 | Q10: Mean: for 1/2 hourly and daily periods calculate mean of values across all operational combustion lines for the month
A11: May | B11: 400 | C11: 165.33 | D11: 251.3 | E11: 180 | F11: 165.47 | G11: 175.17 | K11: May | L11: 167.04 | M11: 251.3 | N11: 167.04 | O11: 174.93
A12: Jun | B12: 400 | C12: 164.63 | D12: 309.71 | E12: 180 | F12: 164.84 | G12: 173.46 | K12: Jun | L12: 164.34 | M12: 309.71 | N12: 164.32 | O12: 171.25
A13: Jul | B13: 400 | C13: 165.57 | D13: 307.62 | E13: 180 | F13: 165.54 | G13: 178.21 | K13: Jul | L13: 169.77 | M13: 241.11 | N13: 169.48 | O13: 173.21 | Q13: Maximum: for 1/2 hourly and daily periods use the highest value across all operational combustion lines for the month
A14: Aug | B14: 400 | C14: 167.61 | D14: 268.11 | E14: 180 | F14: 168.05 | G14: 174.5 | K14: Aug | L14: 168.18 | M14: 238.57 | N14: 169.43 | O14: 172.66
A15: Sep | B15: 400 | C15: 166.83 | D15: 236.48 | E15: 180 | F15: 167.18 | G15: 170.68 | K15: Sep | L15: 165.9 | M15: 231.25 | N15: 166.7 | O15: 170.68
A16: Oct | B16: 400 | C16: 161.46 | D16: 242.78 | E16: 180 | F16: 161.45 | G16: 173.18 | K16: Oct | L16: 156.44 | M16: 239.62 | N16: 156.46 | O16: 168.48
A17: Nov | B17: 400 | C17: 154.78 | D17: 235.56 | E17: 180 | F17: 154.47 | G17: 172.45 | K17: Nov | L17: 144.93 | M17: 235.56 | N17: 144.92 | O17: 154.84
A18: Dec | B18: 400 | C18: 166.1 | D18: 259.8 | E18: 180 | F18: 166.26 | G18: 177.27 | K18: Dec | L18: 161.28 | M18: 211 | N18: 161.29 | O18: 169.73
K19: Annual | L19: =AVERAGE(L7:L18) -> 164.06 | M19: =MAX(M7:M18) -> 309.71 | N19: =AVERAGE(N7:N18) -> 164.2258333 | O19: =MAX(O7:O18) -> 177.98
J21: =+A5 -> 2024 | K21: mg/Nm3 | L21: Monthly mean of half-hourly averages | M21: Highest half- hourly average | N21: Monthly mean of daily averages | O21: Highest daily average
J22: A2 | K22: Jan | L22: 168.78 | M22: 284.35 | N22: 168.91 | O22: 176.71
K23: Feb | L23: 169.05 | M23: 247.97 | N23: 169.05 | O23: 176.69
K24: Mar | L24: 167.68 | M24: 247.48 | N24: 168.48 | O24: 173.92
K25: Apr | L25: 162.42 | M25: 272.63 | N25: 162.53 | O25: 175.37
K26: May | L26: 164.55 | M26: 248.42 | N26: 164.54 | O26: 175.17
K27: Jun | L27: 165.2 | M27: 280.86 | N27: 165.96 | O27: 173.46
K28: Jul | L28: 162.08 | M28: 307.62 | N28: 162.11 | O28: 178.21
K29: Aug | L29: 167.02 | M29: 248.95 | N29: 167.21 | O29: 174.5
K30: Sep | L30: 163.56 | M30: 236.48 | N30: 163.36 | O30: 169.74
K31: Oct | L31: 158.81 | M31: 234.4 | N31: 158.58 | O31: 173.18
K32: Nov | L32: 159.47 | M32: 233.36 | N32: 159.47 | O32: 172.45
K33: Dec | L33: 168.02 | M33: 258.64 | N33: 168.3 | O33: 177.27
K34: Annual | L34: =AVERAGE(L22:L33) -> 164.72 | M34: =MAX(M22:M33) -> 307.62 | N34: =AVERAGE(N22:N33) -> 164.875 | O34: =MAX(O22:O33) -> 178.21
J36: =+A5 -> 2024 | K36: mg/Nm3 | L36: Monthly mean of half-hourly averages | M36: Highest half- hourly average | N36: Monthly mean of daily averages | O36: Highest daily average
J37: A3 | K37: Jan | L37: 157.23 | M37: 255.21 | N37: 157.09 | O37: 176.14
K38: Feb | L38: 164.08 | M38: 232.87 | N38: 164.82 | O38: 174.34
K39: Mar | L39: 165.37 | M39: 221.33 | N39: 165.39 | O39: 172.68
K40: Apr | L40: 156.53 | M40: 217.36 | N40: 156.5 | O40: 164.21
K41: May | L41: 164.12 | M41: 250.51 | N41: 164.58 | O41: 171.72
K42: Jun | L42: 164.28 | M42: 231.31 | N42: 164.21 | O42: 170.94
K43: Jul | L43: 166.84 | M43: 287.98 | N43: 166.85 | O43: 177.61
K44: Aug | L44: 167.62 | M44: 268.11 | N44: 167.62 | O44: 172.56
K45: Sep | L45: 168.79 | M45: 224.75 | N45: 168.79 | O45: 170.36
K46: Oct | L46: 168.96 | M46: 242.78 | N46: 168.95 | O46: 172.43
K47: Nov | L47: 167.34 | M47: 218.59 | N47: 166.86 | O47: 171.4
A48: Comments : | K48: Dec | L48: 169.08 | M48: 259.8 | N48: 169.46 | O48: 174.52
K49: Annual | L49: =AVERAGE(L37:L48) -> 165.02 | M49: =MAX(M37:M48) -> 287.98 | N49: =AVERAGE(N37:N48) -> 165.0933333 | O49: =MAX(O37:O48) -> 177.61
J51: =+A5 -> 2024 | K51: mg/Nm3 | L51: Monthly mean of half-hourly averages | M51: Highest half- hourly average | N51: Monthly mean of daily averages | O51: Highest daily average
J52: A4 | K52: Jan
K53: Feb
K54: Mar
K55: Apr
K56: May
K57: Jun
K58: Jul
K59: Aug
K60: Sep
K61: Oct
K62: Nov
K63: Dec
K64: Annual | L64: =AVERAGE(L52:L63) ->  | M64: =MAX(M52:M63) -> 0 | N64: =AVERAGE(N52:N63) ->  | O64: =MAX(O52:O63) -> 0
J66: =+A5 -> 2024 | K66: mg/Nm3 | L66: Monthly mean of half-hourly averages | M66: Highest half- hourly average | N66: Monthly mean of daily averages | O66: Highest daily average
J67: A5 | K67: Jan
K68: Feb
K69: Mar
K70: Apr
K71: May
K72: Jun
K73: Jul
K74: Aug
K75: Sep
K76: Oct
K77: Nov
K78: Dec
K79: Annual | L79: =AVERAGE(L67:L78) ->  | M79: =MAX(M67:M78) -> 0 | N79: =AVERAGE(N67:N78) ->  | O79: =MAX(O67:O78) -> 0

Sheet TOC
A1: =+'Cover Page'!$B$29 -> Annual Performance Report 2024 | E1: =+'Cover Page'!$B$33 -> The Coventry and Solihull Waste Disposal Company Limited
A3: Monitoring of Total organic carbon emissions | D3: Whole Installation | G3: See Notes in Cell Q3 | J3: =+A3 -> Monitoring of Total organic carbon emissions | N3: Per Combustion Line | Q3: Notes:
Q4: User to add logic to complete Whole installation, Table A5:G18. From the data in Per Combustion Line, Table J6:O79, subject to No. of lines installed
A5: =+'Cover Page'!C39 -> 2024 | B5: 1/2 Hourly Reference Periods | E5: Daily Reference Periods
A6: mg/Nm3 | B6: 1/2 hourly TOC ELV | C6: Monthly mean of half-hourly averages | D6: Highest half- hourly average | E6: Daily TOC ELV | F6: Monthly mean of daily averages | G6: Highest daily average | J6: =+A5 -> 2024 | K6: mg/Nm3 | L6: Monthly mean of half-hourly averages | M6: Highest half- hourly average | N6: Monthly mean of daily averages | O6: Highest daily average
A7: Jan | B7: 20 | C7: 0.56 | D7: 4.72 | E7: 10 | F7: 0.55 | G7: 1.13 | J7: A1 | K7: Jan | L7: 1.02 | M7: 3.98 | N7: 1 | O7: 1.13
A8: Feb | B8: 20 | C8: 0.69 | D8: 6.61 | E8: 10 | F8: 0.68 | G8: 1.27 | K8: Feb | L8: 0.8 | M8: 4.58 | N8: 0.78 | O8: 1.27
A9: Mar | B9: 20 | C9: 0.69 | D9: 6.48 | E9: 10 | F9: 0.69 | G9: 1.07 | K9: Mar | L9: 0.8 | M9: 5.52 | N9: 0.8 | O9: 1.07 | Q9: Whole Installation table A5:G18:
A10: Apr | B10: 20 | C10: 0.65 | D10: 6.32 | E10: 10 | F10: 0.65 | G10: 1.09 | K10: Apr | L10: 0.81 | M10: 6.32 | N10: 0.81 | O10: 1.04 | Q10: Mean: for 1/2 hourly and daily periods calculate mean of values across all operational combustion lines for the month
A11: May | B11: 20 | C11: 0.62 | D11: 9.56 | E11: 10 | F11: 0.62 | G11: 0.99 | K11: May | L11: 0.77 | M11: 5.35 | N11: 0.77 | O11: 0.92
A12: Jun | B12: 20 | C12: 0.64 | D12: 9.59 | E12: 10 | F12: 0.65 | G12: 1.27 | K12: Jun | L12: 0.78 | M12: 4.78 | N12: 0.79 | O12: 0.96
A13: Jul | B13: 20 | C13: 0.68 | D13: 4.62 | E13: 10 | F13: 0.67 | G13: 1.28 | K13: Jul | L13: 0.9 | M13: 4.62 | N13: 0.9 | O13: 1.06 | Q13: Maximum: for 1/2 hourly and daily periods use the highest value across all operational combustion lines for the month
A14: Aug | B14: 20 | C14: 0.85 | D14: 6.02 | E14: 10 | F14: 0.84 | G14: 1.51 | K14: Aug | L14: 1.02 | M14: 6.02 | N14: 1.01 | O14: 1.51
A15: Sep | B15: 20 | C15: 0.9 | D15: 6.21 | E15: 10 | F15: 0.89 | G15: 1.37 | K15: Sep | L15: 1.07 | M15: 6.21 | N15: 1.08 | O15: 1.37
A16: Oct | B16: 20 | C16: 0.82 | D16: 7.02 | E16: 10 | F16: 0.83 | G16: 1.37 | K16: Oct | L16: 1.11 | M16: 7.02 | N16: 1.11 | O16: 1.37
A17: Nov | B17: 20 | C17: 0.65 | D17: 8.86 | E17: 10 | F17: 0.66 | G17: 1.47 | K17: Nov | L17: 1.05 | M17: 8.86 | N17: 1.05 | O17: 1.47
A18: Dec | B18: 20 | C18: 0.61 | D18: 11.32 | E18: 10 | F18: 0.61 | G18: 1.61 | K18: Dec | L18: 0.92 | M18: 7.18 | N18: 0.92 | O18: 1.19
K19: Annual | L19: =AVERAGE(L7:L18) -> 0.9208333333 | M19: =MAX(M7:M18) -> 8.86 | N19: =AVERAGE(N7:N18) -> 0.9183333333 | O19: =MAX(O7:O18) -> 1.51
J21: =+A5 -> 2024 | K21: mg/Nm3 | L21: Monthly mean of half-hourly averages | M21: Highest half- hourly average | N21: Monthly mean of daily averages | O21: Highest daily average
J22: A2 | K22: Jan | L22: 0.27 | M22: 3.78 | N22: 0.27 | O22: 0.72
K23: Feb | L23: 0.53 | M23: 6.61 | N23: 0.53 | O23: 0.81
K24: Mar | L24: 0.49 | M24: 5.81 | N24: 0.47 | O24: 0.66
K25: Apr | L25: 0.25 | M25: 4.84 | N25: 0.25 | O25: 0.62
K26: May | L26: 0.29 | M26: 4.7 | N26: 0.29 | O26: 0.53
K27: Jun | L27: 0.28 | M27: 3.94 | N27: 0.27 | O27: 0.57
K28: Jul | L28: 0.37 | M28: 4.57 | N28: 0.35 | O28: 1.28
K29: Aug | L29: 0.69 | M29: 4.66 | N29: 0.69 | O29: 1.31
K30: Sep | L30: 0.63 | M30: 6.2 | N30: 0.6 | O30: 0.83
K31: Oct | L31: 0.55 | M31: 5.3 | N31: 0.54 | O31: 0.82
K32: Nov | L32: 0.35 | M32: 4.11 | N32: 0.35 | O32: 0.77
K33: Dec | L33: 0.31 | M33: 4.73 | N33: 0.31 | O33: 0.54
K34: Annual | L34: =AVERAGE(L22:L33) -> 0.4175 | M34: =MAX(M22:M33) -> 6.61 | N34: =AVERAGE(N22:N33) -> 0.41 | O34: =MAX(O22:O33) -> 1.31
J36: =+A5 -> 2024 | K36: mg/Nm3 | L36: Monthly mean of half-hourly averages | M36: Highest half- hourly average | N36: Monthly mean of daily averages | O36: Highest daily average
J37: A3 | K37: Jan | L37: 0.53 | M37: 4.72 | N37: 0.54 | O37: 0.92
K38: Feb | L38: 0.73 | M38: 6.5 | N38: 0.74 | O38: 1.02
K39: Mar | L39: 0.74 | M39: 6.48 | N39: 0.74 | O39: 0.99
K40: Apr | L40: 0.89 | M40: 4.21 | N40: 0.88 | O40: 1.09
K41: May | L41: 0.87 | M41: 9.56 | N41: 0.88 | O41: 0.99
K42: Jun | L42: 0.9 | M42: 9.59 | N42: 0.9 | O42: 1.27
K43: Jul | L43: 0.86 | M43: 3.09 | N43: 0.86 | O43: 1.25
K44: Aug | L44: 0.83 | M44: 4.55 | N44: 0.83 | O44: 1.11
K45: Sep | L45: 0.86 | M45: 4.26 | N45: 0.86 | O45: 1.19
K46: Oct | L46: 0.79 | M46: 5.86 | N46: 0.79 | O46: 0.98
K47: Nov | L47: 0.41 | M47: 3.35 | N47: 0.44 | O47: 0.75
A48: Comments : | K48: Dec | L48: 0.6 | M48: 11.32 | N48: 0.6 | O48: 1.61
K49: Annual | L49: =AVERAGE(L37:L48) -> 0.7508333333 | M49: =MAX(M37:M48) -> 11.32 | N49: =AVERAGE(N37:N48) -> 0.755 | O49: =MAX(O37:O48) -> 1.61
J51: =+A5 -> 2024 | K51: mg/Nm3 | L51: Monthly mean of half-hourly averages | M51: Highest half- hourly average | N51: Monthly mean of daily averages | O51: Highest daily average
J52: A4 | K52: Jan
K53: Feb
K54: Mar
K55: Apr
K56: May
K57: Jun
K58: Jul
K59: Aug
K60: Sep
K61: Oct
K62: Nov
K63: Dec
K64: Annual | L64: =AVERAGE(L52:L63) ->  | M64: =MAX(M52:M63) -> 0 | N64: =AVERAGE(N52:N63) ->  | O64: =MAX(O52:O63) -> 0
J66: =+A5 -> 2024 | K66: mg/Nm3 | L66: Monthly mean of half-hourly averages | M66: Highest half- hourly average | N66: Monthly mean of daily averages | O66: Highest daily average
J67: A5 | K67: Jan
K68: Feb
K69: Mar
K70: Apr
K71: May
K72: Jun
K73: Jul
K74: Aug
K75: Sep
K76: Oct
K77: Nov
K78: Dec
K79: Annual | L79: =AVERAGE(L67:L78) ->  | M79: =MAX(M67:M78) -> 0 | N79: =AVERAGE(N67:N78) ->  | O79: =MAX(O67:O78) -> 0

Sheet Particulates
A1: =+'Cover Page'!$B$29 -> Annual Performance Report 2024 | E1: =+'Cover Page'!$B$33 -> The Coventry and Solihull Waste Disposal Company Limited
A3: Monitoring of Particulate matter emissions | D3: Whole Installation | G3: See Notes in Cell Q3 | J3: =+A3 -> Monitoring of Particulate matter emissions | N3: Per Combustion Line | Q3: Notes:
A5: =+'Cover Page'!C39 -> 2024 | B5: 1/2 Hourly Reference Periods | E5: Daily Reference Periods | Q5: User to add logic to complete Whole installation, Table A5:G18. From the data in Per Combustion Line, Table J6:O79, subject to No. of lines installed
A6: mg/Nm3 | B6: 1/2 hourly PM ELV | C6: Monthly mean of half-hourly averages | D6: Highest half- hourly average | E6: Daily PM ELV | F6: Monthly mean of daily averages | G6: Highest daily average | J6: =+A5 -> 2024 | K6: mg/Nm3 | L6: Monthly mean of half-hourly averages | M6: Highest half- hourly average | N6: Monthly mean of daily averages | O6: Highest daily average
A7: Jan | B7: 30 | C7: 0.7 | D7: 3.83 | E7: 5 | F7: 0.68 | G7: 1.97 | J7: A1 | K7: Jan | L7: 1.67 | M7: 3.83 | N7: 1.68 | O7: 1.97
A8: Feb | B8: 30 | C8: 0.64 | D8: 5.83 | E8: 5 | F8: 0.63 | G8: 2.33 | K8: Feb | L8: 1.25 | M8: 5.83 | N8: 1.27 | O8: 2.33
A9: Mar | B9: 30 | C9: 0.93 | D9: 6.75 | E9: 5 | F9: 0.95 | G9: 3.78 | K9: Mar | L9: 1.92 | M9: 6.75 | N9: 1.93 | O9: 3.78
A10: Apr | B10: 30 | C10: 1.21 | D10: 9.88 | E10: 5 | F10: 1.22 | G10: 4.08 | K10: Apr | L10: 3.05 | M10: 9.88 | N10: 3.06 | O10: 4.08 | Q10: Whole Installation table A5:G18:
A11: May | B11: 30 | C11: 1.04 | D11: 5.2 | E11: 5 | F11: 1.06 | G11: 3.59 | K11: May | L11: 2.3 | M11: 5.2 | N11: 2.3 | O11: 3.59 | Q11: Mean: for 1/2 hourly and daily periods calculate mean of values across all operational combustion lines for the month
A12: Jun | B12: 30 | C12: 0.77 | D12: 4.63 | E12: 5 | F12: 0.78 | G12: 3.06 | K12: Jun | L12: 1.75 | M12: 4.63 | N12: 1.75 | O12: 3.06
A13: Jul | B13: 30 | C13: 0.41 | D13: 16.3 | E13: 5 | F13: 0.39 | G13: 0.69 | K13: Jul | L13: 0.57 | M13: 16.3 | N13: 0.47 | O13: 0.69
A14: Aug | B14: 30 | C14: 0.35 | D14: 2.04 | E14: 5 | F14: 0.35 | G14: 0.83 | K14: Aug | L14: 0.43 | M14: 2.04 | N14: 0.43 | O14: 0.83 | Q14: Maximum: for 1/2 hourly and daily periods use the highest value across all operational combustion lines for the month
A15: Sep | B15: 30 | C15: 0.41 | D15: 3.51 | E15: 5 | F15: 0.4 | G15: 0.58 | K15: Sep | L15: 0.43 | M15: 1.11 | N15: 0.42 | O15: 0.46
A16: Oct | B16: 30 | C16: 0.47 | D16: 1.59 | E16: 5 | F16: 0.46 | G16: 0.98 | K16: Oct | L16: 0.4 | M16: 0.57 | N16: 0.4 | O16: 0.43
A17: Nov | B17: 30 | C17: 0.55 | D17: 2.32 | E17: 5 | F17: 0.55 | G17: 0.96 | K17: Nov | L17: 0.4 | M17: 0.62 | N17: 0.4 | O17: 0.43
A18: Dec | B18: 30 | C18: 0.54 | D18: 1.59 | E18: 5 | F18: 0.53 | G18: 1.03 | K18: Dec | L18: 0.42 | M18: 0.95 | N18: 0.42 | O18: 0.46
K19: Annual | L19: =AVERAGE(L7:L18) -> 1.215833333 | M19: =MAX(M7:M18) -> 16.3 | N19: =AVERAGE(N7:N18) -> 1.210833333 | O19: =MAX(O7:O18) -> 4.08
J21: =+A5 -> 2024 | K21: mg/Nm3 | L21: Monthly mean of half-hourly averages | M21: Highest half- hourly average | N21: Monthly mean of daily averages | O21: Highest daily average
J22: A2 | K22: Jan | L22: 0.42 | M22: 0.65 | N22: 0.42 | O22: 0.46
K23: Feb | L23: 0.37 | M23: 1.06 | N23: 0.37 | O23: 0.66
K24: Mar | L24: 0.4 | M24: 1.01 | N24: 0.4 | O24: 0.59
K25: Apr | L25: 0.3 | M25: 0.39 | N25: 0.3 | O25: 0.33
K26: May | L26: 0.32 | M26: 0.56 | N26: 0.32 | O26: 0.35
K27: Jun | L27: 0.34 | M27: 0.98 | N27: 0.33 | O27: 0.52
K28: Jul | L28: 0.37 | M28: 0.97 | N28: 0.37 | O28: 0.49
K29: Aug | L29: 0.31 | M29: 0.7 | N29: 0.31 | O29: 0.33
K30: Sep | L30: 0.54 | M30: 3.51 | N30: 0.51 | O30: 0.58
K31: Oct | L31: 0.66 | M31: 1.59 | N31: 0.66 | O31: 0.98
K32: Nov | L32: 0.78 | M32: 1.5 | N32: 0.77 | O32: 0.96
K33: Dec | L33: 0.83 | M33: 1.59 | N33: 0.83 | O33: 1.03
K34: Annual | L34: =AVERAGE(L22:L33) -> 0.47 | M34: =MAX(M22:M33) -> 3.51 | N34: =AVERAGE(N22:N33) -> 0.4658333333 | O34: =MAX(O22:O33) -> 1.03
J36: =+A5 -> 2024 | K36: mg/Nm3 | L36: Monthly mean of half-hourly averages | M36: Highest half- hourly average | N36: Monthly mean of daily averages | O36: Highest daily average
J37: A3 | K37: Jan | L37: 0.29 | M37: 0.45 | N37: 0.29 | O37: 0.31
K38: Feb | L38: 0.35 | M38: 0.45 | N38: 0.35 | O38: 0.37
K39: Mar | L39: 0.34 | M39: 0.55 | N39: 0.34 | O39: 0.38
K40: Apr | L40: 0.33 | M40: 0.52 | N40: 0.33 | O40: 0.36
K41: May | L41: 0.36 | M41: 0.84 | N41: 0.36 | O41: 0.38
K42: Jun | L42: 0.36 | M42: 0.52 | N42: 0.36 | O42: 0.39
K43: Jul | L43: 0.36 | M43: 0.5 | N43: 0.36 | O43: 0.39
K44: Aug | L44: 0.33 | M44: 0.44 | N44: 0.33 | O44: 0.36
K45: Sep | L45: 0.34 | M45: 1.3 | N45: 0.34 | O45: 0.41
K46: Oct | L46: 0.36 | M46: 0.67 | N46: 0.36 | O46: 0.4
K47: Nov | L47: 0.36 | M47: 2.32 | N47: 0.34 | O47: 0.37
A48: Comments : | K48: Dec | L48: 0.35 | M48: 0.72 | N48: 0.35 | O48: 0.42
K49: Annual | L49: =AVERAGE(L37:L48) -> 0.3441666667 | M49: =MAX(M37:M48) -> 2.32 | N49: =AVERAGE(N37:N48) -> 0.3425 | O49: =MAX(O37:O48) -> 0.42
J51: =+A5 -> 2024 | K51: mg/Nm3 | L51: Monthly mean of half-hourly averages | M51: Highest half- hourly average | N51: Monthly mean of daily averages | O51: Highest daily average
J52: A4 | K52: Jan
K53: Feb
K54: Mar
K55: Apr
K56: May
K57: Jun
K58: Jul
K59: Aug
K60: Sep
K61: Oct
K62: Nov
K63: Dec
K64: Annual | L64: =AVERAGE(L52:L63) ->  | M64: =MAX(M52:M63) -> 0 | N64: =AVERAGE(N52:N63) ->  | O64: =MAX(O52:O63) -> 0
J66: =+A5 -> 2024 | K66: mg/Nm3 | L66: Monthly mean of half-hourly averages | M66: Highest half- hourly average | N66: Monthly mean of daily averages | O66: Highest daily average
J67: A5 | K67: Jan
K68: Feb
K69: Mar
K70: Apr
K71: May
K72: Jun
K73: Jul
K74: Aug
K75: Sep
K76: Oct
K77: Nov
K78: Dec
K79: Annual | L79: =AVERAGE(L67:L78) ->  | M79: =MAX(M67:M78) -> 0 | N79: =AVERAGE(N67:N78) ->  | O79: =MAX(O67:O78) -> 0

Sheet CO 0.5 hourly
A1: =+'Cover Page'!$B$29 -> Annual Performance Report 2024 | E1: =+'Cover Page'!$B$33 -> The Coventry and Solihull Waste Disposal Company Limited
A3: Monitoring of Carbon Monoxide (half hourly) | D3: Whole Installation | G3: See Notes in Cell Q3 | J3: =+A3 -> Monitoring of Carbon Monoxide (half hourly) | N3: Per Combustion Line | Q3: Notes:
A5: Please complete this tab for your plant if you have 1/2 hourly CO ELVs; otherwise, leave it blank and complete the CO 95% 10 min tab
Q7: User to add logic to complete Whole installation, Table A5:G18. From the data in Per Combustion Line, Table J6:O79, subject to No. of lines installed
A8: =+'Cover Page'!C39 -> 2024 | B8: 1/2 Hourly Reference Periods | E8: Daily Reference Periods
A9: mg/Nm3 | B9: 1/2 hourly CO ELV | C9: Monthly mean of half-hourly averages | D9: Highest half- hourly average | E9: Daily CO ELV | F9: Monthly mean of daily averages | G9: Highest daily average | J9: =+A8 -> 2024 | K9: mg/Nm3 | L9: Monthly mean of half-hourly averages | M9: Highest half- hourly average | N9: Monthly mean of daily averages | O9: Highest daily average
A10: Jan | B10: 100 | E10: 50 | J10: A1 | K10: Jan
A11: Feb | B11: =+B10 -> 100 | E11: =+E10 -> 50 | K11: Feb
A12: Mar | B12: =+B11 -> 100 | E12: =+E11 -> 50 | K12: Mar | Q12: Whole Installation table A5:G18:
A13: Apr | B13: 100 | E13: 50 | K13: Apr | Q13: Mean: for 1/2 hourly and daily periods calculate mean of values across all operational combustion lines for the month
A14: May | B14: 100 | E14: 50 | K14: May
A15: Jun | B15: 100 | E15: 50 | K15: Jun
A16: Jul | B16: 100 | E16: 50 | K16: Jul | Q16: Maximum: for 1/2 hourly and daily periods use the highest value across all operational combustion lines for the month
A17: Aug | B17: 100 | E17: 50 | K17: Aug
A18: Sep | B18: 100 | E18: 50 | K18: Sep
A19: Oct | B19: 100 | E19: 50 | K19: Oct
A20: Nov | B20: 100 | E20: 50 | K20: Nov
A21: Dec | B21: 100 | E21: 50 | K21: Dec
K22: Annual | L22: =AVERAGE(L10:L21) ->  | M22: =MAX(M10:M21) -> 0 | N22: =AVERAGE(N10:N21) ->  | O22: =MAX(O10:O21) -> 0
J24: =+A8 -> 2024 | K24: mg/Nm3 | L24: Monthly mean of half-hourly averages | M24: Highest half- hourly average | N24: Monthly mean of daily averages | O24: Highest daily average
J25: A2 | K25: Jan
K26: Feb
K27: Mar
K28: Apr
K29: May
K30: Jun
K31: Jul
K32: Aug
K33: Sep
K34: Oct
K35: Nov
K36: Dec
K37: Annual | L37: =AVERAGE(L25:L36) ->  | M37: =MAX(M25:M36) -> 0 | N37: =AVERAGE(N25:N36) ->  | O37: =MAX(O25:O36) -> 0
J39: =+A8 -> 2024 | K39: mg/Nm3 | L39: Monthly mean of half-hourly averages | M39: Highest half- hourly average | N39: Monthly mean of daily averages | O39: Highest daily average
J40: A3 | K40: Jan
K41: Feb
K42: Mar
K43: Apr
K44: May
K45: Jun
K46: Jul
K47: Aug
K48: Sep
K49: Oct
K50: Nov
A51: Comments : | K51: Dec
K52: Annual | L52: =AVERAGE(L40:L51) ->  | M52: =MAX(M40:M51) -> 0 | N52: =AVERAGE(N40:N51) ->  | O52: =MAX(O40:O51) -> 0
J54: =+A8 -> 2024 | K54: mg/Nm3 | L54: Monthly mean of half-hourly averages | M54: Highest half- hourly average | N54: Monthly mean of daily averages | O54: Highest daily average
J55: A4 | K55: Jan
K56: Feb
K57: Mar
K58: Apr
K59: May
K60: Jun
K61: Jul
K62: Aug
K63: Sep
K64: Oct
K65: Nov
K66: Dec
K67: Annual | L67: =AVERAGE(L55:L66) ->  | M67: =MAX(M55:M66) -> 0 | N67: =AVERAGE(N55:N66) ->  | O67: =MAX(O55:O66) -> 0
J69: =+A8 -> 2024 | K69: mg/Nm3 | L69: Monthly mean of half-hourly averages | M69: Highest half- hourly average | N69: Monthly mean of daily averages | O69: Highest daily average
J70: A5 | K70: Jan
K71: Feb
K72: Mar
K73: Apr
K74: May
K75: Jun
K76: Jul
K77: Aug
K78: Sep
K79: Oct
K80: Nov
K81: Dec
K82: Annual | L82: =AVERAGE(L70:L81) ->  | M82: =MAX(M70:M81) -> 0 | N82: =AVERAGE(N70:N81) ->  | O82: =MAX(O70:O81) -> 0

Sheet CO 95% 10 min
A1: =+'Cover Page'!$B$29 -> Annual Performance Report 2024 | E1: =+'Cover Page'!$B$33 -> The Coventry and Solihull Waste Disposal Company Limited
A3: Monitoring of Carbon Monoxide (10-minute avg) | E3: Whole Installation | H3: See Notes in Cell S3 | J3: =+A3 -> Monitoring of Carbon Monoxide (10-minute avg) | O3: Per Combustion Line | Q3: Notes: | S3: Notes:
A5: Please complete this tab for your plant if you have 10-minute average CO ELVs; otherwise, leave it blank and complete the CO 0.5 hourly tab
S7: User to add logic to complete Whole installation, Table A5:H18. From the data in Per Combustion Line, Table K6:Q79, subject to No. of lines installed
A8: =+'Cover Page'!C39 -> 2024 | B8: 10-minute Reference Periods | F8: Daily Reference Periods
A9: mg/Nm3 | B9: 95%ile 10-min avg CO ELV | C9: Highest daily 95%ile 10-min average | D9: Monthly mean of 10-min averages | E9: Highest 10-min average | F9: Daily CO ELV | G9: Monthly mean of daily averages | H9: Highest daily average | K9: =+A8 -> 2024 | L9: mg/Nm3 | M9: Highest daily 95%ile 10-min average | N9: Monthly mean of 10-min averages | O9: Highest 10-min average | P9: Monthly mean of daily averages | Q9: Highest daily average
A10: Jan | B10: 150 | C10: 75.19 | D10: 21.08 | E10: 643.91 | F10: 50 | G10: 20.82 | H10: 41.63 | K10: A1 | L10: Jan | M10: 75.19 | N10: 29.97 | O10: 643.91 | P10: 29.59 | Q10: 41.63
A11: Feb | B11: =+B10 -> 150 | C11: 68.95 | D11: 21.11 | E11: 455.97 | F11: =+F10 -> 50 | G11: 21.07 | H11: 34.71 | L11: Feb | M11: 68.95 | N11: 22.08 | O11: 455.97 | P11: 22.08 | Q11: 34.71
A12: Mar | B12: =+B11 -> 150 | C12: 109.92 | D12: 22.7 | E12: 360 | F12: =+F11 -> 50 | G12: 22.67 | H12: 36.6 | L12: Mar | M12: 62.28 | N12: 24.21 | O12: 355.51 | P12: 24.2 | Q12: 30.55 | S12: Whole Installation table A5:H18:
A13: Apr | B13: 150 | C13: 73.91 | D13: 22.12 | E13: 317.59 | F13: 50 | G13: 22.1 | H13: 34.73 | L13: Apr | M13: 73.91 | N13: 26.24 | O13: 317.59 | P13: 26.17 | Q13: 34.73 | S13: Mean: for 10-min and daily periods use average of all operational combustion lines.
A14: May | B14: 150 | C14: 96.45 | D14: 20.95 | E14: 344.4 | F14: 50 | G14: 20.96 | H14: 32.96 | L14: May | M14: 57.42 | N14: 21.42 | O14: 289.6 | P14: 21.41 | Q14: 26.91
A15: Jun | B15: 150 | C15: 140.35 | D15: 20.75 | E15: 449.16 | F15: 50 | G15: 20.45 | H15: 43 | L15: Jun | M15: 79.58 | N15: 22.12 | O15: 252.45 | P15: 21.95 | Q15: 28.76
A16: Jul | B16: 150 | C16: 64.94 | D16: 17.84 | E16: 401.97 | F16: 50 | G16: 17.71 | H16: 27.1 | L16: Jul | M16: 34.29 | N16: 18.29 | O16: 200.53 | P16: 18.13 | Q16: 22.84 | S16: Maximum: for 10-min and daily periods use the highest of all operational combustion lines in any month.
A17: Aug | B17: 150 | C17: 73.81 | D17: 16.68 | E17: 320.84 | F17: 50 | G17: 16.6 | H17: 30.88 | L17: Aug | M17: 73.81 | N17: 17.13 | O17: 295.32 | P17: 16.89 | Q17: 22.94
A18: Sep | B18: 150 | C18: 53.81 | D18: 18.66 | E18: 526.89 | F18: 50 | G18: 18.22 | H18: 29.48 | L18: Sep | M18: 48.98 | N18: 20.24 | O18: 305.63 | P18: 19.64 | Q18: 29.48
A19: Oct | B19: 150 | C19: 94.67 | D19: 18.85 | E19: 516.85 | F19: 50 | G19: 18.96 | H19: 33.68 | L19: Oct | M19: 67.39 | N19: 16.93 | O19: 164.16 | P19: 16.93 | Q19: 24.42
A20: Nov | B20: 150 | C20: 74.35 | D20: 19.36 | E20: 331.93 | F20: 50 | G20: 19.25 | H20: 30.13 | L20: Nov | M20: 74.35 | N20: 19.27 | O20: 301.62 | P20: 19.27 | Q20: 30.13
A21: Dec | B21: 150 | C21: 116.87 | D21: 20.42 | E21: 285.25 | F21: 50 | G21: 20.57 | H21: 37.08 | L21: Dec | M21: 88.54 | N21: 23 | O21: 285.25 | P21: 23 | Q21: 31.83
L22: Annual | M22: =AVERAGE(M10:M21) -> 67.0575 | O22: =MAX(O10:O21) -> 643.91 | P22: =AVERAGE(P10:P21) -> 21.605 | Q22: =MAX(Q10:Q21) -> 41.63
K24: =+A8 -> 2024 | L24: mg/Nm3 | M24: Highest daily 95%ile 10-min average | N24: Monthly mean of 10-min averages | O24: Highest 10-min average | P24: Monthly mean of daily averages | Q24: Highest daily average
K25: A2 | L25: Jan | M25: 50.71 | N25: 16.98 | O25: 205.78 | P25: 17.05 | Q25: 24.36
L26: Feb | M26: 68.1 | N26: 20.65 | O26: 210.6 | P26: 20.4 | Q26: 28.19
L27: Mar | M27: 109.92 | N27: 21.81 | O27: 360 | P27: 21.6 | Q27: 36.6
L28: Apr | M28: 64.13 | N28: 16.78 | O28: 200.02 | P28: 16.78 | Q28: 22.14
L29: May | M29: 96.45 | N29: 22.63 | O29: 200.04 | P29: 22.63 | Q29: 32.96
L30: Jun | M30: 140.35 | N30: 22.52 | O30: 449.16 | P30: 22.05 | Q30: 43
L31: Jul | M31: 64.94 | N31: 20.25 | O31: 222.88 | P31: 20.1 | Q31: 27.1
L32: Aug | M32: 72.56 | N32: 17.79 | O32: 320.84 | P32: 17.8 | Q32: 30.88
L33: Sep | M33: 53.81 | N33: 16.04 | O33: 526.89 | P33: 14.68 | Q33: 25.65
L34: Oct | M34: 94.67 | N34: 16.89 | O34: 516.85 | P34: 17.11 | Q34: 33.68
L35: Nov | M35: 51.92 | N35: 18.34 | O35: 331.93 | P35: 18.33 | Q35: 25.08
L36: Dec | M36: 40.15 | N36: 15.66 | O36: 239.59 | P36: 15.91 | Q36: 22.67
L37: Annual | M37: =AVERAGE(M25:M36) -> 75.6425 | O37: =MAX(O25:O36) -> 526.89 | P37: =AVERAGE(P25:P36) -> 18.70333333 | Q37: =MAX(Q25:Q36) -> 43
K39: =+A8 -> 2024 | L39: mg/Nm3 | M39: Highest daily 95%ile 10-min average | N39: Monthly mean of 10-min averages | O39: Highest 10-min average | P39: Monthly mean of daily averages | Q39: Highest daily average
K40: A3 | L40: Jan | M40: 62.61 | N40: 18.68 | O40: 636.9 | P40: 18.84 | Q40: 30.57
L41: Feb | M41: 55.84 | N41: 20.67 | O41: 283.25 | P41: 20.85 | Q41: 27.86
L42: Mar | M42: 45.77 | N42: 21.87 | O42: 208.89 | P42: 21.86 | Q42: 29.58
L43: Apr | M43: 73.4 | N43: 23.42 | O43: 246.76 | P43: 23.3 | Q43: 31.7
L44: May | M44: 44.65 | N44: 18.13 | O44: 344.4 | P44: 17.97 | Q44: 28.33
L45: Jun | M45: 94.88 | N45: 17.78 | O45: 380.53 | P45: 17.64 | Q45: 31.5
L46: Jul | M46: 47.8 | N46: 15.27 | O46: 401.97 | P46: 15.27 | Q46: 20.64
L47: Aug | M47: 40.2 | N47: 15.22 | O47: 218.81 | P47: 15.23 | Q47: 20.01
L48: Sep | M48: 49.2 | N48: 18.41 | O48: 185.21 | P48: 18.41 | Q48: 28.41
L49: Oct | M49: 64.7 | N49: 22.6 | O49: 193.97 | P49: 22.59 | Q49: 31.05
L50: Nov | M50: 60.62 | N50: 22.1 | O50: 234.79 | P50: 21.67 | Q50: 28.56
A51: Comments : | L51: Dec | M51: 116.87 | N51: 22.57 | O51: 235.84 | P51: 22.63 | Q51: 37.08
A52: Environment Agency explanatory note: The 10-minute average ELV is based on the “95th percentile”. In this case this means that 95% of the 10 minute averages in the relevant 24-hour period (i.e. 137) must be below 150 mg/Nm3, and 5% (i.e. 7) are allowed to be any value above 150 mg/Nm3. Whilst we expect operators to minimise CO emissions at all times, it is perfectly acceptable for the value of the maximum 10-minute average to be above 150 mg/Nm3, provided the 95th percentile ELV has been met for that period. | L52: Annual | M52: =AVERAGE(M40:M51) -> 63.045 | O52: =MAX(O40:O51) -> 636.9 | P52: =AVERAGE(P40:P51) -> 19.68833333 | Q52: =MAX(Q40:Q51) -> 37.08
K54: =+A8 -> 2024 | L54: mg/Nm3 | M54: Highest daily 95%ile 10-min average | N54: Monthly mean of 10-min averages | O54: Highest 10-min average | P54: Monthly mean of daily averages | Q54: Highest daily average
K55: A4 | L55: Jan
L56: Feb
L57: Mar
L58: Apr
L59: May
L60: Jun
L61: Jul
L62: Aug
L63: Sep
L64: Oct
L65: Nov
L66: Dec
L67: Annual | M67: =AVERAGE(M55:M66) ->  | O67: =MAX(O55:O66) -> 0 | P67: =AVERAGE(P55:P66) ->  | Q67: =MAX(Q55:Q66) -> 0
K69: =+A8 -> 2024 | L69: mg/Nm3 | M69: 95%ile 10-min avg maximum | N69: Monthly CO 10-min avg mean | O69: 10-min avg maximum | P69: Monthly daily mean | Q69: Monthly daily maximum
K70: A5 | L70: Jan
L71: Feb
L72: Mar
L73: Apr
L74: May
L75: Jun
L76: Jul
L77: Aug
L78: Sep
L79: Oct
L80: Nov
L81: Dec
L82: Annual | M82: =AVERAGE(M70:M81) ->  | O82: =MAX(O70:O81) -> 0 | P82: =AVERAGE(P70:P81) ->  | Q82: =MAX(Q70:Q81) -> 0

Sheet NH3
A1: =+'Cover Page'!$B$29 -> Annual Performance Report 2024 | E1: =+'Cover Page'!$B$33 -> The Coventry and Solihull Waste Disposal Company Limited
A3: Monitoring of Ammnonia emissions | D3: Whole Installation | G3: See Notes in Cell Q3 | J3: =+A3 -> Monitoring of Ammnonia emissions | N3: Per Combustion Line | Q3: Notes:
Q4: User to add logic to complete Whole installation, Table A5:G18. From the data in Per Combustion Line, Table J6:O79, subject to No. of lines installed
A5: =+'Cover Page'!C39 -> 2024 | B5: 1/2 Hourly Reference Periods | E5: Daily Reference Periods
A6: mg/Nm3 | B6: 1/2 hourly NH3 ELV | C6: Monthly mean of half-hourly averages | D6: Highest half- hourly average | E6: Daily NH3 ELV | F6: Monthly mean of daily averages | G6: Highest daily average | J6: =+A5 -> 2024 | K6: mg/Nm3 | L6: Monthly mean of half-hourly averages | M6: Highest half- hourly average | N6: Monthly mean of daily averages | O6: Highest daily average
A7: Jan | B7: None | E7: 15 | F7: 10.81 | G7: 14.12 | J7: A1 | K7: Jan | L7: 11.31 | M7: 25.74 | N7: 11.33 | O7: 12.87
A8: Feb | B8: =+B7 -> None | E8: 15 | F8: 10.76 | G8: 13.67 | K8: Feb | L8: 10.93 | M8: 24.23 | N8: 10.96 | O8: 13.53
A9: Mar | B9: =+B8 -> None | E9: 15 | F9: 11.22 | G9: 13.93 | K9: Mar | L9: 12.09 | M9: 19.88 | N9: 12.09 | O9: 13.78 | Q9: Whole Installation table A5:G18:
A10: Apr | B10: None | E10: 15 | F10: 11.29 | G10: 14.11 | K10: Apr | L10: 12.29 | M10: 24.28 | N10: 12.36 | O10: 14.11 | Q10: Mean: for 1/2 hourly and daily periods calculate mean of values across all operational combustion lines for the month
A11: May | B11: None | E11: 15 | F11: 11.67 | G11: 13.63 | K11: May | L11: 11.77 | M11: 25.05 | N11: 11.77 | O11: 12.83
A12: Jun | B12: None | E12: 15 | F12: 11.69 | G12: 13.69 | K12: Jun | L12: 11.83 | M12: 22.06 | N12: 11.84 | O12: 13.69
A13: Jul | B13: None | E13: 15 | F13: 11.27 | G13: 13.51 | K13: Jul | L13: 9.7 | M13: 32.31 | N13: 9.72 | O13: 11.11 | Q13: Maximum: for 1/2 hourly and daily periods use the highest value across all operational combustion lines for the month
A14: Aug | B14: None | E14: 15 | F14: 7.61 | G14: 11.59 | K14: Aug | L14: 6.47 | M14: 20.89 | N14: 6.48 | O14: 8.43
A15: Sep | B15: None | E15: 15 | F15: 7.38 | G15: 10.24 | K15: Sep | L15: 6.77 | M15: 12.88 | N15: 6.89 | O15: 9.32
A16: Oct | B16: None | E16: 15 | F16: 5.51 | G16: 8.86 | K16: Oct | L16: 3.02 | M16: 8.17 | N16: 3.02 | O16: 4.3
A17: Nov | B17: None | E17: 15 | F17: 5.69 | G17: 12.69 | K17: Nov | L17: 3.41 | M17: 10.34 | N17: 3.41 | O17: 5.11
A18: Dec | B18: None | E18: 15 | F18: 7.15 | G18: 14.12 | K18: Dec | L18: 4.34 | M18: 11.24 | N18: 4.35 | O18: 5.93
K19: Annual | L19: =AVERAGE(L7:L18) -> 8.660833333 | M19: =MAX(M7:M18) -> 32.31 | N19: =AVERAGE(N7:N18) -> 8.685 | O19: =MAX(O7:O18) -> 14.11
J21: =+A5 -> 2024 | K21: mg/Nm3 | L21: Monthly mean of half-hourly averages | M21: Highest half- hourly average | N21: Monthly mean of daily averages | O21: Highest daily average
J22: A2 | K22: Jan | L22: 12.27 | M22: 26.66 | N22: 12.28 | O22: 14.12
K23: Feb | L23: 11.15 | M23: 28.47 | N23: 11.15 | O23: 13.67
K24: Mar | L24: 11.44 | M24: 20.84 | N24: 11.56 | O24: 13.93
K25: Apr | L25: 10.98 | M25: 17.73 | N25: 10.96 | O25: 13.33
K26: May | L26: 12.18 | M26: 19.37 | N26: 12.18 | O26: 13.63
K27: Jun | L27: 11.4 | M27: 21.79 | N27: 11.48 | O27: 12.8
K28: Jul | L28: 10.91 | M28: 40.57 | N28: 10.97 | O28: 12.25
K29: Aug | L29: 7.86 | M29: 20.07 | N29: 7.86 | O29: 10.37
K30: Sep | L30: 7.38 | M30: 30.92 | N30: 7.31 | O30: 10.24
K31: Oct | L31: 6.78 | M31: 15.46 | N31: 6.73 | O31: 8.86
K32: Nov | L32: 6.95 | M32: 18.58 | N32: 6.95 | O32: 10.3
K33: Dec | L33: 9.29 | M33: 18.3 | N33: 9.28 | O33: 14.12
K34: Annual | L34: =AVERAGE(L22:L33) -> 9.8825 | M34: =MAX(M22:M33) -> 40.57 | N34: =AVERAGE(N22:N33) -> 9.8925 | O34: =MAX(O22:O33) -> 14.12
J36: =+A5 -> 2024 | K36: mg/Nm3 | L36: Monthly mean of half-hourly averages | M36: Highest half- hourly average | N36: Monthly mean of daily averages | O36: Highest daily average
J37: A3 | K37: Jan | L37: 9.02 | M37: 22.9 | N37: 9 | O37: 12.08
K38: Feb | L38: 10.02 | M38: 18.1 | N38: 10.17 | O38: 12.94
K39: Mar | L39: 10.13 | M39: 22.42 | N39: 10.12 | O39: 12.54
K40: Apr | L40: 10.54 | M40: 26.89 | N40: 10.58 | O40: 12.65
K41: May | L41: 10.75 | M41: 21.31 | N41: 10.82 | O41: 11.98
K42: Jun | L42: 11.76 | M42: 24.39 | N42: 11.76 | O42: 13.33
K43: Jul | L43: 12.31 | M43: 28.41 | N43: 12.31 | O43: 13.51
K44: Aug | L44: 8.36 | M44: 36.21 | N44: 8.36 | O44: 11.59
K45: Sep | L45: 7.74 | M45: 19.28 | N45: 7.74 | O45: 9.77
K46: Oct | L46: 6.92 | M46: 15.84 | N46: 6.92 | O46: 8.85
K47: Nov | L47: 8.33 | M47: 16.19 | N47: 8.49 | O47: 12.69
A48: Comments : | K48: Dec | L48: 7.86 | M48: 39.75 | N48: 7.95 | O48: 11.56
A49: An indicated ELV value of zero in the table above means that no ammonia limit is/was set in the permit. | K49: Annual | L49: =AVERAGE(L37:L48) -> 9.478333333 | M49: =MAX(M37:M48) -> 39.75 | N49: =AVERAGE(N37:N48) -> 9.518333333 | O49: =MAX(O37:O48) -> 13.51
J51: =+A5 -> 2024 | K51: mg/Nm3 | L51: Monthly mean of half-hourly averages | M51: Highest half- hourly average | N51: Monthly mean of daily averages | O51: Highest daily average
J52: A4 | K52: Jan
K53: Feb
K54: Mar
K55: Apr
K56: May
K57: Jun
K58: Jul
K59: Aug
K60: Sep
K61: Oct
K62: Nov
K63: Dec
K64: Annual | L64: =AVERAGE(L52:L63) ->  | M64: =MAX(M52:M63) -> 0 | N64: =AVERAGE(N52:N63) ->  | O64: =MAX(O52:O63) -> 0
J66: =+A5 -> 2024 | K66: mg/Nm3 | L66: Monthly mean of half-hourly averages | M66: Highest half- hourly average | N66: Monthly mean of daily averages | O66: Highest daily average
J67: A5 | K67: Jan
K68: Feb
K69: Mar
K70: Apr
K71: May
K72: Jun
K73: Jul
K74: Aug
K75: Sep
K76: Oct
K77: Nov
K78: Dec
K79: Annual | L79: =AVERAGE(L67:L78) ->  | M79: =MAX(M67:M78) -> 0 | N79: =AVERAGE(N67:N78) ->  | O79: =MAX(O67:O78) -> 0

Sheet Template changes log
A1: Log of changes to template (Environment Agency use only)
A3: Date | B3: Description of change | C3: New version number and date
A4: 2024-01-16 | B4: Air (periodic) tab: corrected default O2 reference from 6 to 11% | C4: Version 23.5a (for incinerators) - 16/01/2024
A5: 2024-09-23 | B5: Air (periodic) tab: corrected symbol for Thallium to Tl
A6: 2024-09-23 | B6: Air (periodic) tab: removed last year's references to different emission limit values applying from 03/12/23 and updated all relevant ELVs
A7: 2024-09-23 | B7: Tabs for continuously monitored pollutants (HCl, SO2 etc.): changed terminology in table headings to improve clarity
A8: 2024-09-23 | B8: Tabs for continuously monitored pollutants (HCl, SO2 etc.): removed last year's references to different emission limit values applying from 03/12/23 and updated all relevant ELVs
A9: 2024-09-23 | B9: Perf 1 tab: updated formula for water usage to report m3 rather than litres and corrected error with formula copying operator name
A10: 2024-09-23 | B10: Operational Summary tab: table added on start-ups and shut-downs
A11: 2024-09-23 | B11: Operational Summary tab: table added on dioxins and mercury protocols
A12: 2024-09-23 | B12: Operational Summary tab: table added on AST, QAL 2 and calibration functions
A13: 2024-09-23 | B13: CO2 N2O tab: various changes made to notes to reflect the fact that most plants should now have calibrated CEMS and flow meters + some have C14 samplers and more up to date industry data | C13: Version 24a (for incinerators) - 23/09/24
A14: 2024-11-08 | B14: CO2 N2O tab: Changed the N2O CO2 equivalence factor from 298 to 265 in line with recently updated government greenhouse gas figures: https://www.gov.uk/government/publications/greenhouse-gas-reporting-conversion-factors-2024
A15: 2024-11-08 | B15: CO2 N2O tab: Added an additional requirement for municipal EfW plants to state the yearly average biogenic percentage of the waste by mass, and reference to a document which sets out a methodology for calculating NCV of waste from the results of C14 sampling.
A16: 2024-11-08 | B16: Permit Compliance tab: Two additional columns added + explanatory notes to the table entitled "Summary of non-compliances under the permit" to allow CCS scores to be stated where relevant.
A17: 2024-11-08 | B17: Residue Quality tab: Note added explaining application of TOC and LOI limits and asking operators to report both metrics where measured. | C17: Version 24.1a (for incinerators) - 08/11/24
A18: 2024-11-27 | B18: Operational Summary tab: Tables on mercury & dioxins protocols and ASTs removed (covered instead by new tables added to updated Air 9 periodic monitoring form) | C18: Version 24.2a (for incinerators) - 27/11/24
